{"text_format":"1","workbook":"xlsx","n_sheets":8,"sheets":["Indeks","Introduktion","Spørgeskema","Requirements_hidden","Questionnaire","Hjælp","Level of Conformance","Requirements"],"not_rendered":{"charts":0,"images":0,"macros":1,"external_links":0,"defined_names":22,"comments":0,"pivot_tables":0},"unopened":[],"bounds":{"document_bytes":16777216,"sheet_cells":100000,"rows_first":2000,"rows_last":500,"rows_between":2000,"halvings":0,"cell_chars":16384,"cell_head_chars":4096},"cells_cut":0,"cells_raw":0,"read":"whole","date_system":"1900"}

{"sheet":"Indeks","index":0,"n_rows":4,"n_cols":1,"rows_kept":4,"cut":false,"hidden":false,"merged":[]}
["Projektmappen har fire ark: det første ark fungerer som indeks, det andet ark er oversigt over WCAG-screeningsværktøjet, og det tredje og fjerde ark er **WCAG-overensstemmelsesspørgeskemaet**. Links til de andre tre ark findes nedenfor."]
["Introduktion"]
["Spørgeskema"]
["Hjælp"]

{"sheet":"Introduktion","index":1,"n_rows":2,"n_cols":1,"rows_kept":2,"cut":false,"hidden":false,"merged":[]}
["Regnearket indeholder en **oversigt over WCAG-screeningsværktøjet**."]
["Formål\nDette screeningsværktøj er designet til at hjælpe dig med at identificere og sortere relevante WCAG-krav, som du bør stille overfor leverandører. Ved at besvare spørgsmål i et spørgeskema, får du en oversigt over de WCAG-krav, der er mest relevante for din specifikke situation.\n\nSådan Bruger Du Værktøjet\nTrin 1: Besvar Spørgeskemaet\n - Åbn spørgeskemaet: Find fanen med spørgeskemaet i Excel-arket.\n- Besvar spørgsmålene: Gå igennem hvert spørgsmål og besvar dem så præcist som muligt. \nSpørgsmålene er designet til at afdække dine behov og krav til webtilgængelighed.\n\nTrin 2: Generer Oversigt over WCAG-Krav\n- Automatisk sortering: Når du har besvaret spørgeskemaet, vil værktøjet automatisk sortere og generere en liste over relevante WCAG-krav ved at klikke på \"Generer Kravsoversigt\"\n- Se oversigten: Gå til fanen med oversigten over WCAG-krav. Her vil du finde en liste over de krav, der er relevante baseret på dine svar.\n\nVigtige Funktioner\nInteraktiv Spørgeskema: Spørgeskemaet er interaktivt og dynamisk, hvilket betyder, at dine svar direkte påvirker hvilke WCAG-krav der vises i oversigten.\n\nTips til Brug\nVær præcis: Jo mere præcise dine svar er, desto mere nøjagtig vil oversigten over WCAG-krav være.\nGennemgå kravene: Tag dig tid til at gennemgå de genererede WCAG-krav og forstå deres betydning og relevans.\nKommuniker med leverandører: Brug den genererede liste som grundlag for at stille klare og specifikke krav til dine leverandører.\n\nHjælp\nHjælp-fane: Hvis du har udfordringer med at besvare spørgsmålene, kan du finde uddybende beskrivelser og vejledninger i fanen kaldet \"Hjælp\". Denne fane indeholder detaljerede forklaringer, der kan hjælpe dig med at forstå og besvare hvert spørgsmål korrekt."]

{"sheet":"Spørgeskema","index":2,"n_rows":23,"n_cols":3,"rows_kept":23,"cut":false,"hidden":false,"merged":[]}
["Regnearket indeholder **WCAG-overensstemmelsesspørgeskemaet**."]
["Nr. ","Spørgsmål","Besvarelse"]
[1,"Hvilket niveau af overholdelse af WCAG-krav skal imødekommes?\n*AA = Adresserer de mest almindelige barrierer. Sigter mod at gøre indhold tilgængeligt for et bredere publikum. og **AAA (højeste niveau) = Højeste niveau af tilgængelighed. Sikrer, at indhold er tilgængeligt for det størst mulige antal personer, herunder personer med alvorlige handicap."]
[2,"Bruger løsningen videoindhold?"]
[3,"Bruger løsningen lydindhold?"]
[4,"Inkluderer løsningen live streaming eller webcasts?"]
[5,"Indeholder løsningen billeder med tekst indhold?"]
[6,"Indeholder løsningen formularer, som brugerne skal udfylde?"]
[7,"Benytter løsningen tekst?"]
[8,"Benytter løsningen ikke-tekstindhold (f.eks. billeder, ikoner)?"]
[9,"Benytter løsningen farve til at formidle information?"]
[10,"Kan løsningen bruges på mobile enheder (Smartphones og tablets)?"]
[11,"Har løsningen tidsbegrænsninger for brugerhandlinger?"]
[12,"Indeholder løsningen indhold, der bevæger sig, blinker eller opdateres automatisk?"]
[13,"Indeholder løsningen indehold som kræver instruktioner?"]
[14,"Undersøtter løsningen brugerinput?"]
[15,"Indeholder løsningen links?"]
[16,"Har brugeren mulighed for at sende information fra løsningen?"]
[17,"Understøtter løsningen interaktioner med berøringsskærm?"]
[18,"Er der i løsningen indhold som er implementeret ved hjælp af opmærkningssprog?"]
[19,"Bruger løsningen forkortelser, usædvanlige ord eller et sprog der kræver et bestemt læseniveau?"]
[20,"Består løsningen af flere sider (websider)?"]
[21,"Løsningen understøtter at brugerne interagerer med indhold ved hjælp af et tastatur?"]

{"sheet":"Requirements_hidden","index":3,"n_rows":79,"n_cols":10,"rows_kept":79,"cut":false,"hidden":true,"merged":[]}
["Hide/unhide","Principper","Retningslinjer","Nr.","Succeskriterier","Beskrivelse","Level ","Mål","Hvad skal man gøre","Hvorfor det er vigtigt"]
[{"$f":"IF(LEN(Requirements_hidden!G2)>LEN(Question1),\"Hide\",\nIF(AND(COUNTIF(Questionnaire!$C$2:$M$43,Requirements_hidden!D2)>0,COUNTIF(Questionnaire!$C$2:$M$43,Requirements_hidden!D2)=COUNTIF(Questionnaire!$O$2:$Z$43,Requirements_hidden!D2)),\"Hide\",\"Unhide\"))","v":"Hide"},"Opfattelig","Tekstbaserede alternativer","1.1.1","Ikke-tekstbaseret indhold","Alt ikke-tekstbaseret indhold, der præsenteres for brugeren, har tilknyttet et tekstbaseret alternativ, som har samme formål, undtaget nedenstående situationer.","A","Ikke-tekstinformation er tilgængelig for flere mennesker.","Opret et tekstalternativ til visuelt og auditivt indhold.","Folk, der ikke fuldt ud kan se eller høre indhold, kan forstå det."]
[{"$f":"IF(LEN(Requirements_hidden!G3)>LEN(Question1),\"Hide\",\nIF(AND(COUNTIF(Questionnaire!$C$2:$M$43,Requirements_hidden!D3)>0,COUNTIF(Questionnaire!$C$2:$M$43,Requirements_hidden!D3)=COUNTIF(Questionnaire!$O$2:$Z$43,Requirements_hidden!D3)),\"Hide\",\"Unhide\"))","v":"Hide"},"Opfattelig","Tidsafhængige medier","1.2.1","Rent lydindhold (audio only) og rent videoindhold (video only) (forudindspillet)","For forudindspillet rent lydindhold og forudindspillet rent videoindhold gælder følgende, undtagen når video eller lyd udgør et mediealternativ til tekst og klart er markeret som sådan","A","Lyd- og videoindhold kan forstås af flere mennesker.","Giv et alternativ, når indhold kun kan opfattes med én sans.","Folk, der ikke fuldt ud kan se eller høre indhold, kan forstå det."]
[{"$f":"IF(LEN(Requirements_hidden!G4)>LEN(Question1),\"Hide\",\nIF(AND(COUNTIF(Questionnaire!$C$2:$M$43,Requirements_hidden!D4)>0,COUNTIF(Questionnaire!$C$2:$M$43,Requirements_hidden!D4)=COUNTIF(Questionnaire!$O$2:$Z$43,Requirements_hidden!D4)),\"Hide\",\"Unhide\"))","v":"Hide"},"Opfattelig","Tidsafhængige medier","1.2.2","Undertekster (forudindspillet)","Der skal leveres undertekster til alt forudindspillet lydindhold i synkroniserede medier, undtaget når medier fungerer som mediealternativ til tekst og er klart markeret som sådan.","A","Videoer kan afspilles med undertekster.","Giv synkroniseret tekst til lydindhold i eksisterende videoer.","Døve eller hørehæmmede kan forstå lyd i videoer."]
[{"$f":"IF(LEN(Requirements_hidden!G5)>LEN(Question1),\"Hide\",\nIF(AND(COUNTIF(Questionnaire!$C$2:$M$43,Requirements_hidden!D5)>0,COUNTIF(Questionnaire!$C$2:$M$43,Requirements_hidden!D5)=COUNTIF(Questionnaire!$O$2:$Z$43,Requirements_hidden!D5)),\"Hide\",\"Unhide\"))","v":"Hide"},"Opfattelig","Tidsafhængige medier","1.2.3","Synstolkning eller mediealternativ (forudindspillet)","Der skal leveres et alternativ til tidsafhængige medier eller synstolkning af forudindspillet/ videoindhold i synkroniserede medier, undtagen når medierne er mediealternativ til tekst og er klart markeret som sådan.","A","Forudindspillede videoer kan forstås af flere mennesker.","Giv en beskrivelse af det visuelle indhold i videoer.","Personer, der er blinde, eller som ikke kan forstå det visuelle indhold, kan få det beskrevet."]
[{"$f":"IF(LEN(Requirements_hidden!G6)>LEN(Question1),\"Hide\",\nIF(AND(COUNTIF(Questionnaire!$C$2:$M$43,Requirements_hidden!D6)>0,COUNTIF(Questionnaire!$C$2:$M$43,Requirements_hidden!D6)=COUNTIF(Questionnaire!$O$2:$Z$43,Requirements_hidden!D6)),\"Hide\",\"Unhide\"))","v":"Hide"},"Opfattelig","Tidsafhængige medier","1.2.4","Undertekster (direkte)","Der skal leveres undertekster til alt direkte udsendt lydindhold i synkroniserede medier","AA","Livevideoer har undertekster.","Giv synkroniseret tekst til lydindhold i realtidsvideoer.","Døve eller hørehæmmede kan forstå lyd i videoindhold i realtid."]
[{"$f":"IF(LEN(Requirements_hidden!G7)>LEN(Question1),\"Hide\",\nIF(AND(COUNTIF(Questionnaire!$C$2:$M$43,Requirements_hidden!D7)>0,COUNTIF(Questionnaire!$C$2:$M$43,Requirements_hidden!D7)=COUNTIF(Questionnaire!$O$2:$Z$43,Requirements_hidden!D7)),\"Hide\",\"Unhide\"))","v":"Hide"},"Opfattelig","Tidsafhængige medier","1.2.5","Synstolkning (forudindspillet)","Der skal leveres synstolkning til alt forudindspillet videoindhold i synkroniserede medier.","AA","Videoer kan afspilles med lydbeskrivelser.","Giv en synkroniseret talt beskrivelse af det visuelle indhold i videoer.","Folk, der ikke kan se eller forstå det visuelle indhold, kan høre om det, mens de afspiller videoer."]
[{"$f":"IF(LEN(Requirements_hidden!G8)>LEN(Question1),\"Hide\",\nIF(AND(COUNTIF(Questionnaire!$C$2:$M$43,Requirements_hidden!D8)>0,COUNTIF(Questionnaire!$C$2:$M$43,Requirements_hidden!D8)=COUNTIF(Questionnaire!$O$2:$Z$43,Requirements_hidden!D8)),\"Hide\",\"Unhide\"))","v":"Hide"},"Opfattelig","Tidsafhængige medier","1.2.6","Tegnsprog (forudindspillet)","Der skal leveres tegnsprogstolkning til alt forudindspillet lydindhold i synkroniserede medier.","AAA","Videoer kan ledsages af tegnsprog.","Giv tegnsprogstolkning til lydindhold i eksisterende videoer.","Døve eller hørehæmmede har flere måder at forstå multimedieindhold på."]
[{"$f":"IF(LEN(Requirements_hidden!G9)>LEN(Question1),\"Hide\",\nIF(AND(COUNTIF(Questionnaire!$C$2:$M$43,Requirements_hidden!D9)>0,COUNTIF(Questionnaire!$C$2:$M$43,Requirements_hidden!D9)=COUNTIF(Questionnaire!$O$2:$Z$43,Requirements_hidden!D9)),\"Hide\",\"Unhide\"))","v":"Hide"},"Opfattelig","Tidsafhængige medier","1.2.7","Udvidet synstolkning (forudindspillet)","I tilfælde, hvor pauserne i forgrundslyden ikke er tilstrækkeligt lange til at tillade synstolkning til formidling af videoens betydning, skal der leveres udvidet synstolkning til alt forudindspillet videoindhold i synkroniserede medier.","AAA","Videoer kan afspilles med mere detaljerede lydbeskrivelser.","Giv udvidede talte beskrivelser af det visuelle indhold i videoer.","Folk, der er blinde eller som ikke kan forstå det visuelle indhold, kan få det beskrevet for dem, mens de afspiller videoer."]
[{"$f":"IF(LEN(Requirements_hidden!G10)>LEN(Question1),\"Hide\",\nIF(AND(COUNTIF(Questionnaire!$C$2:$M$43,Requirements_hidden!D10)>0,COUNTIF(Questionnaire!$C$2:$M$43,Requirements_hidden!D10)=COUNTIF(Questionnaire!$O$2:$Z$43,Requirements_hidden!D10)),\"Hide\",\"Unhide\"))","v":"Hide"},"Opfattelig","Tidsafhængige medier","1.2.8","Mediealternativ (forudindspillet)","Der skal leveres et alternativ til alle forudindspillede synkroniserede medier samt alle forudindspillede rene videomedier.","AAA","Indspillede videoer kan forstås af flere mennesker.","Angiv en tekstækvivalent for alt indhold i videoer.","Flere mennesker, herunder dem, der er døvblinde, kan bedre forstå indholdet i deres eget tempo."]
[{"$f":"IF(LEN(Requirements_hidden!G11)>LEN(Question1),\"Hide\",\nIF(AND(COUNTIF(Questionnaire!$C$2:$M$43,Requirements_hidden!D11)>0,COUNTIF(Questionnaire!$C$2:$M$43,Requirements_hidden!D11)=COUNTIF(Questionnaire!$O$2:$Z$43,Requirements_hidden!D11)),\"Hide\",\"Unhide\"))","v":"Hide"},"Opfattelig","Tidsafhængige medier","1.2.9","Rent lydindhold (direkte)","Der skal leveres et alternativ til tidsafhængige medier, som præsenterer information, der svarer til den rene, direkte udsendte lyd.","AAA","Live lyd kan forstås af flere mennesker.","Angiv en tekstækvivalent til live-lydindhold.","Folk, der ikke kan høre eller forstå lyd i realtid, kan læse en tilsvarende."]
[{"$f":"IF(LEN(Requirements_hidden!G12)>LEN(Question1),\"Hide\",\nIF(AND(COUNTIF(Questionnaire!$C$2:$M$43,Requirements_hidden!D12)>0,COUNTIF(Questionnaire!$C$2:$M$43,Requirements_hidden!D12)=COUNTIF(Questionnaire!$O$2:$Z$43,Requirements_hidden!D12)),\"Hide\",\"Unhide\"))","v":"Hide"},"Opfattelig","Tilpasset","1.3.1","Information og relationer","Information, struktur, og relationer der formidles via præsentationen, kan bestemmes programmeringsmæssigt eller er tilgængelige som tekst.","A","Information om indholdsstruktur er tilgængelig for flere.","Brug kode til at forstærke relationer og information, der formidles gennem præsentation.","Folk kan tilpasse præsentationen, så den passer til deres behov, samtidig med at den oprindelige betydning bevares."]
[{"$f":"IF(LEN(Requirements_hidden!G13)>LEN(Question1),\"Hide\",\nIF(AND(COUNTIF(Questionnaire!$C$2:$M$43,Requirements_hidden!D13)>0,COUNTIF(Questionnaire!$C$2:$M$43,Requirements_hidden!D13)=COUNTIF(Questionnaire!$O$2:$Z$43,Requirements_hidden!D13)),\"Hide\",\"Unhide\"))","v":"Hide"},"Opfattelig","Tilpasset","1.3.2","Meningsfuld rækkefølge","Når den rækkefølge som indhold præsenteres i, påvirker indholdets mening, kan en korrekt læserækkefølge bestemmes programmeringsmæssigt.","A","Rækkefølgen af indhold kan forstås af flere mennesker.","Brug kode til at bevare meningsfuld indholdsrækkefølge.","Hjælpeteknologi kan præsentere indhold for brugerne i den rigtige rækkefølge."]
[{"$f":"IF(LEN(Requirements_hidden!G14)>LEN(Question1),\"Hide\",\nIF(AND(COUNTIF(Questionnaire!$C$2:$M$43,Requirements_hidden!D14)>0,COUNTIF(Questionnaire!$C$2:$M$43,Requirements_hidden!D14)=COUNTIF(Questionnaire!$O$2:$Z$43,Requirements_hidden!D14)),\"Hide\",\"Unhide\"))","v":"Hide"},"Opfattelig","Tilpasset","1.3.3","Sensoriske egenskaber","Instruktioner, der vedrører forståelse og betjening af indhold, er ikke udelukkende afhængige af komponenternes sensoriske egenskaber såsom form, størrelse, visuel placering, orientering eller lyd.","A","Instruktioner er forståelige for flere mennesker.","Beskriv kontrolelementer efter navn, ikke kun efter udseende eller placering.","Mennesker, der er blinde eller har nedsat syn, har brug for ikke-visuelle instruktioner."]
[{"$f":"IF(LEN(Requirements_hidden!G15)>LEN(Question1),\"Hide\",\nIF(AND(COUNTIF(Questionnaire!$C$2:$M$43,Requirements_hidden!D15)>0,COUNTIF(Questionnaire!$C$2:$M$43,Requirements_hidden!D15)=COUNTIF(Questionnaire!$O$2:$Z$43,Requirements_hidden!D15)),\"Hide\",\"Unhide\"))","v":"Hide"},"Opfattelig","Tilpasset","1.3.4","Retning","Indhold begrænser ikke sin visning eller anvendelse til en enkelt skærmretning, såsom lodret eller vandret, medmindre en bestemt skærmretning er nødvendig.","AA","Enheder kan bruges i enhver retning.","Lås ikke indhold til hverken stående eller liggende præsentation.","Kørestolsbrugere og andre kan have enheder monteret i en fast retning."]
[{"$f":"IF(LEN(Requirements_hidden!G16)>LEN(Question1),\"Hide\",\nIF(AND(COUNTIF(Questionnaire!$C$2:$M$43,Requirements_hidden!D16)>0,COUNTIF(Questionnaire!$C$2:$M$43,Requirements_hidden!D16)=COUNTIF(Questionnaire!$O$2:$Z$43,Requirements_hidden!D16)),\"Hide\",\"Unhide\"))","v":"Hide"},"Opfattelig","Tilpasset","1.3.5","Identificering af inputformål","Formålet med hvert inputfelt, der indhenter information om brugeren, kan bestemmes programmeringsmæssigt, når:\n\n- Inputfeltet tjener et formål, der er identificeret i sektionen Inputformål for brugergrænsefladekomponenter, og\n- Indholdet er implementeret med teknologier, som understøtter identifikation af den forventede betydning af inputoplysninger.","AA","Det er lettere at udfylde formularer.","Brug kode til at angive formålet med fælles input, hvor teknologien tillader det.","Nogle mennesker med kognitive handicap forstår måske ikke inputtets formål ud fra etiketten alene."]
[{"$f":"IF(LEN(Requirements_hidden!G17)>LEN(Question1),\"Hide\",\nIF(AND(COUNTIF(Questionnaire!$C$2:$M$43,Requirements_hidden!D17)>0,COUNTIF(Questionnaire!$C$2:$M$43,Requirements_hidden!D17)=COUNTIF(Questionnaire!$O$2:$Z$43,Requirements_hidden!D17)),\"Hide\",\"Unhide\"))","v":"Hide"},"Opfattelig","Tilpasset","1.3.6","Identificering af formål","I indhold, der er implementeret ved hjælp af opmærkningssprog, kan formålet med brugergrænsefladekomponenter, ikoner og regioner bestemmes programmeringsmæssigt.","AAA","Det er nemmere at betjene og navigere i indhold.","Brug kode til at angive betydningen af alle kontrolelementer og andre vigtige oplysninger, hvor de er tilgængelige.","Nogle mennesker med kognitive handicap forstår måske ikke en kontrols formål ud fra navnet alene."]
[{"$f":"IF(LEN(Requirements_hidden!G18)>LEN(Question1),\"Hide\",\nIF(AND(COUNTIF(Questionnaire!$C$2:$M$43,Requirements_hidden!D18)>0,COUNTIF(Questionnaire!$C$2:$M$43,Requirements_hidden!D18)=COUNTIF(Questionnaire!$O$2:$Z$43,Requirements_hidden!D18)),\"Hide\",\"Unhide\"))","v":"Hide"},"Opfattelig","Adskillelig","1.4.1","Anvendelse af farve","Farve er ikke det eneste visuelle middel, der anvendes til at formidle information, gøre opmærksom på en handling, anmode om respons eller udskille et visuelt element.","A","Farve er ikke den eneste måde at skelne information på.","Brug oplysninger ud over farve, f.eks. form eller tekst, til at formidle betydning.","Ikke alle ser farver eller ser dem på samme måde."]
[{"$f":"IF(LEN(Requirements_hidden!G19)>LEN(Question1),\"Hide\",\nIF(AND(COUNTIF(Questionnaire!$C$2:$M$43,Requirements_hidden!D19)>0,COUNTIF(Questionnaire!$C$2:$M$43,Requirements_hidden!D19)=COUNTIF(Questionnaire!$O$2:$Z$43,Requirements_hidden!D19)),\"Hide\",\"Unhide\"))","v":"Hide"},"Opfattelig","Adskillelig","1.4.2","Kontrol af lyd","Hvis eventuel lyd på en webside spiller automatisk i mere end tre sekunder, skal der enten være en mekanisme, som kan anvendes til at afbryde lyden helt eller midlertidigt, eller der skal findes en mekanisme, som kan regulere lydstyrken uafhængigt af systemets generelle lydniveau.","A","En side, der afspiller musik eller lyde, forstyrrer ikke folk.","Hvis du afspiller lydindhold automatisk, skal du lade andre skrue ned eller fra det.","Lyd distraherer nogle mennesker og forstyrrer også skærmlæsere."]
[{"$f":"IF(LEN(Requirements_hidden!G20)>LEN(Question1),\"Hide\",\nIF(AND(COUNTIF(Questionnaire!$C$2:$M$43,Requirements_hidden!D20)>0,COUNTIF(Questionnaire!$C$2:$M$43,Requirements_hidden!D20)=COUNTIF(Questionnaire!$O$2:$Z$43,Requirements_hidden!D20)),\"Hide\",\"Unhide\"))","v":"Hide"},"Opfattelig","Adskillelig","1.4.3","Kontrast (minimum)","Den visuelle præsentation af tekst og billeder af tekst skal have et kontrastforhold på mindst 4,5:1, undtagen i følgende situationer:\nStor skrift: Tekst og billeder af tekst i stor skrift har et kontrastforhold på mindst 3:1.\nIkke betydningsbærende: Tekst eller billeder af tekst, der udgør en del af en inaktiv brugergrænsefladekomponent, som udelukkende er ren udsmykning, som ikke er synlig for nogen, eller som udgør en del af et billede, der indeholder andet væsentligt visuelt indhold, er ikke underlagt et kontrastkrav.\nLogotyper: Tekst, der udgør en del af et logo eller varemærkenavn, er ikke underlagt et kontrastkrav.","AA","Tekst kan ses af flere mennesker.","Sørg for tilstrækkelig kontrast mellem tekst og baggrund.","Nogle mennesker kan ikke læse svag tekst."]
[{"$f":"IF(LEN(Requirements_hidden!G21)>LEN(Question1),\"Hide\",\nIF(AND(COUNTIF(Questionnaire!$C$2:$M$43,Requirements_hidden!D21)>0,COUNTIF(Questionnaire!$C$2:$M$43,Requirements_hidden!D21)=COUNTIF(Questionnaire!$O$2:$Z$43,Requirements_hidden!D21)),\"Hide\",\"Unhide\"))","v":"Hide"},"Opfattelig","Adskillelig","1.4.4","Ændring af tekststørrelse","Tekst kan, med undtagelse af undertekster og billeder af tekst, forstørres op til 200 % uden brug af kompenserende teknologi uden tab af indhold eller funktionalitet.","AA","Tekst kan forstørres.","Sørg for, at teksten kan fordobles i størrelse.","Nogle mennesker kan kun læse tekst, når den er større."]
[{"$f":"IF(LEN(Requirements_hidden!G22)>LEN(Question1),\"Hide\",\nIF(AND(COUNTIF(Questionnaire!$C$2:$M$43,Requirements_hidden!D22)>0,COUNTIF(Questionnaire!$C$2:$M$43,Requirements_hidden!D22)=COUNTIF(Questionnaire!$O$2:$Z$43,Requirements_hidden!D22)),\"Hide\",\"Unhide\"))","v":"Hide"},"Opfattelig","Adskillelig","1.4.5","Billeder af tekst","Hvis de anvendte teknologier kan håndtere den visuelle præsentation, anvendes tekst frem for billeder af tekst til formidling af information, undtagen i følgende tilfælde:\n\nKan tilpasses: Billedet af tekst kan tilpasses visuelt til at imødekomme brugerens krav.\nNødvendig: En særlig præsentation af tekst er nødvendig for den information, der formidles.","AA","Brugere kan justere, hvordan tekst præsenteres.","Brug tekst i stedet for billeder af tekst.","Folk kan ikke ændre, hvordan tekst ser ud på billeder."]
[{"$f":"IF(LEN(Requirements_hidden!G23)>LEN(Question1),\"Hide\",\nIF(AND(COUNTIF(Questionnaire!$C$2:$M$43,Requirements_hidden!D23)>0,COUNTIF(Questionnaire!$C$2:$M$43,Requirements_hidden!D23)=COUNTIF(Questionnaire!$O$2:$Z$43,Requirements_hidden!D23)),\"Hide\",\"Unhide\"))","v":"Hide"},"Opfattelig","Adskillelig","1.4.6","Kontrast (udvidet)","Den visuelle præsentation af tekst eller billeder af tekst skal have et kontrastforhold på mindst 7:1, undtagen i følgende tilfælde:\n\nStor skrift: Tekst og billeder af tekst med stor skrift skal have et kontrastforhold på mindst 4,5:1.\nIkke betydningsbærende: Tekst eller billeder af tekst, der udgør en del af en inaktiv brugergrænsefladekomponent, som udelukkende er ren udsmykning, som ikke er synlig for nogen, eller som udgør en del af et billede, der indeholder andet væsentligt visuelt indhold, er ikke underlagt et kontrastkrav.\nLogotyper: Tekst, der udgør en del af et logo eller varemærkenavn, er ikke underlagt et kontrastkrav.","AAA","Tekst kan ses af mennesker, der har brug for stærk kontrast.","Kontrast tekst kraftigt mod baggrunden.","Nogle mennesker kan ikke læse tekst med minimal kontrast."]
[{"$f":"IF(LEN(Requirements_hidden!G24)>LEN(Question1),\"Hide\",\nIF(AND(COUNTIF(Questionnaire!$C$2:$M$43,Requirements_hidden!D24)>0,COUNTIF(Questionnaire!$C$2:$M$43,Requirements_hidden!D24)=COUNTIF(Questionnaire!$O$2:$Z$43,Requirements_hidden!D24)),\"Hide\",\"Unhide\"))","v":"Hide"},"Opfattelig","Adskillelig","1.4.7","Lav eller ingen baggrundslyd","For forudindspillet rent lydindhold der (1) primært indeholder tale i forgrunden, (2) ikke er en lydbaseret CAPTCHA eller et lydbaseret logo, og som (3) ikke er vokalisering med et primært musikalsk udtryksformål såsom sang eller rap, gælder mindst et af følgende punkter:\nIngen baggrund: Lydbilledet indeholder ikke baggrundslyd\nSlå fra: Baggrundslyden kan slås fra.\n20 dB:Baggrundslydens lydstyrke er mindst 20 dB lavere end forgrundens taleindhold, undtaget er lejlighedsvise lyde, der kun varer 1 eller 2 sekunder.","AAA","Forudindspillet tale forstyrres ikke af baggrundslyd.","Undgå eller mindsk baggrundslyden, eller lad brugerne slå den fra.","Hørehæmmede kan have svært ved at skelne tale fra musik og andre lyde."]
[{"$f":"IF(LEN(Requirements_hidden!G25)>LEN(Question1),\"Hide\",\nIF(AND(COUNTIF(Questionnaire!$C$2:$M$43,Requirements_hidden!D25)>0,COUNTIF(Questionnaire!$C$2:$M$43,Requirements_hidden!D25)=COUNTIF(Questionnaire!$O$2:$Z$43,Requirements_hidden!D25)),\"Hide\",\"Unhide\"))","v":"Hide"},"Opfattelig","Adskillelig","1.4.8","Visuel præsentation","Der findes en mekanisme til den visuelle præsentation af tekstblokke med det formål at opnå følgende:\n- Forgrunds- og baggrundsfarver kan vælges af brugeren.\n- Bredden er ikke mere end 80 tegn eller glyffer (40 i tilfælde af kinesisk, japansk eller koreansk).\n- Teksten er ikke justeret (justeret efter både venstre og højre margin).\n- Linjeafstanden (skydningen) er mindst 1,5 inden for afsnit, og afstanden mellem afsnit er mindst 1,5 gange større end linjeafstanden.\n- Tekst kan tilpasses i størrelse uden brug af kompenserende teknologi op til 200 % på en måde, der ikke kræver, at brugeren scroller horisontalt for at læse en linje tekst i et vindue i fuld skærm.","AAA","Tekstudseende kan ændres af brugere for at opfylde præferencer.","Opfyld kravene til visning af tekst, eller giv brugerne mulighed for at justere dem.","Nogle tekstformater er mere læsbare for personer med kognitive handicap og nedsat syn."]
[{"$f":"IF(LEN(Requirements_hidden!G26)>LEN(Question1),\"Hide\",\nIF(AND(COUNTIF(Questionnaire!$C$2:$M$43,Requirements_hidden!D26)>0,COUNTIF(Questionnaire!$C$2:$M$43,Requirements_hidden!D26)=COUNTIF(Questionnaire!$O$2:$Z$43,Requirements_hidden!D26)),\"Hide\",\"Unhide\"))","v":"Hide"},"Opfattelig","Adskillelig","1.4.9","Billeder af tekst (ingen undtagelser)","Billeder af tekst anvendes udelukkende som udsmykning, eller hvor en speciel præsentation af tekst er nødvendig for, at informationen formidles.","AAA","Brugere kan altid justere, hvordan tekst præsenteres.","Brug ikke billeder af tekst, medmindre der ikke er nogen anden måde at præsentere information på.","Folk kan ikke ændre, hvordan tekst ser ud på billeder."]
[{"$f":"IF(LEN(Requirements_hidden!G27)>LEN(Question1),\"Hide\",\nIF(AND(COUNTIF(Questionnaire!$C$2:$M$43,Requirements_hidden!D27)>0,COUNTIF(Questionnaire!$C$2:$M$43,Requirements_hidden!D27)=COUNTIF(Questionnaire!$O$2:$Z$43,Requirements_hidden!D27)),\"Hide\",\"Unhide\"))","v":"Hide"},"Opfattelig","Adskillelig","1.4.10"," Ombrydningsvisning","Indhold kan præsenteres uden tab af information eller funktionalitet, og uden at det er nødvendigt at scrolle i to dimensioner, for:\n\n- Lodret scrollende indhold med en bredde svarede til 320 CSS-pixels,\n- Vandret scrollende indhold med en højde svarende til 256 CSS-pixels.\nUndtaget herfra er dele af indholdet, som kræver todimensionelt layout for at kunne anvendes eller give mening.","AA","Indholdet kan forstørres uden at øge linjelængden.","Få tekstlinjer til at ombrydes i visningsporten.","Folk, der har brug for større tekst, har svært ved at scrolle for at læse lange linjer."]
[{"$f":"IF(LEN(Requirements_hidden!G28)>LEN(Question1),\"Hide\",\nIF(AND(COUNTIF(Questionnaire!$C$2:$M$43,Requirements_hidden!D28)>0,COUNTIF(Questionnaire!$C$2:$M$43,Requirements_hidden!D28)=COUNTIF(Questionnaire!$O$2:$Z$43,Requirements_hidden!D28)),\"Hide\",\"Unhide\"))","v":"Hide"},"Opfattelig","Adskillelig","1.4.11"," Kontrast for ikke-tekstbaseret indhold","Den visuelle præsentation af de følgende har et kontrastforhold på mindst 3:1 mod tilstødende farve(r):\nBrugergrænsefladekomponenter: Visuel information, som er nødvendig for at kunne identificere brugergrænsefladekomponenter og tilstande, undtagen for inaktive komponenter eller hvor udseendet af komponenten er bestemt af brugeragenten og ikke ændret af forfatteren.\nGrafiske objekter: Dele af grafik, som er påkrævet for at forstå indholdet, undtagen når en bestemt præsentation af grafikken er nødvendig for den information, der formidles.","AA","Vigtige visuelle oplysninger opfylder den samme minimumskontrast, der kræves for større tekst.","Sørg for, at meningsfulde visuelle signaler opnår 3:1 mod baggrunden.","Nogle mennesker kan ikke se elementer med lav kontrast."]
[{"$f":"IF(LEN(Requirements_hidden!G29)>LEN(Question1),\"Hide\",\nIF(AND(COUNTIF(Questionnaire!$C$2:$M$43,Requirements_hidden!D29)>0,COUNTIF(Questionnaire!$C$2:$M$43,Requirements_hidden!D29)=COUNTIF(Questionnaire!$O$2:$Z$43,Requirements_hidden!D29)),\"Hide\",\"Unhide\"))","v":"Hide"},"Opfattelig","Adskillelig","1.4.12"," Tekstafstand","I indhold, der er implementeret med opmærkningssprog, som understøtter de følgende typografiske egenskaber (text style properties), må der ikke ske tab af indhold eller funktionalitet, når det følgende ændres, uden at andre typografiske egenskaber ændres:\n- Linjeafstand (skydning) til mindst 1,5 gange skriftstørrelsen,\n- Afstand mellem afsnit til mindst 2 gange skriftstørrelsen,\n- Bogstavafstand til mindst 0,12 gange skriftstørrelsen,\n- Afstand mellem ord til mindst 0,16 gange skriftstørrelsen.\nUndtagelse: Menneskelige sprog og skriftsprog, som ikke gør brug af en eller flere af disse typografiske egenskaber (text style properties) i skreven tekst, kan overholde kravene ved kun at bruge de egenskaber, som eksisterer for den kombination af sprog og skriftsprog.","AA","Brugere kan justere tekstafstanden for at gøre den lettere at læse.","Sørg for, at indholdet tilpasser sig brugerdefinerede tekstindstillinger.","Nogle mennesker har brug for tekst med forskellige mellemrum eller skrifttypeegenskaber."]
[{"$f":"IF(LEN(Requirements_hidden!G30)>LEN(Question1),\"Hide\",\nIF(AND(COUNTIF(Questionnaire!$C$2:$M$43,Requirements_hidden!D30)>0,COUNTIF(Questionnaire!$C$2:$M$43,Requirements_hidden!D30)=COUNTIF(Questionnaire!$O$2:$Z$43,Requirements_hidden!D30)),\"Hide\",\"Unhide\"))","v":"Hide"},"Opfattelig","Adskillelig","1.4.13"," Indhold ved svævepegning (hover) eller fokus","Hvor det, at modtage og derefter fjerne svævemarkør (pointer hover) eller tastaturfokus, får ekstra indhold til at blive synligt og derefter skjult, gælder følgende:\nKan afvises: Der findes en mekanisme til at afvise det ekstra indhold uden at flytte svævemarkør (pointer hover) eller tastaturfokus, medmindre det ekstra indhold formidler en inputfejl eller ikke dækker for eller erstatter andet indhold.\nSvævepegning mulig (hoverable): Hvis en svævemarkør (hover) kan udløse det ekstra indhold, skal markøren kunne flyttes hen over det ekstra indhold, uden at det ekstra indhold forsvinder.\nBlivende: Det ekstra indhold forbliver synligt indtil svæve- eller fokusudløseren er fjernet, brugeren afviser indholdet, eller informationen ikke længere er gyldig.\nUndtagelse: Den visuelle præsentation af det ekstra indhold er kontrolleret af brugeragenten og er ikke blevet ændret af forfatteren.","AA","Flere brugere kan opfatte og afvise ikke-vedvarende indhold.","Hvis pegefølsomhed eller fokus forårsager indholdsændringer, skal du sikre dig, at interaktionen er forudsigelig.","Uforudsigeligt midlertidigt indhold kan være svært for nogle at konsumere og kan forstyrre andre."]
[{"$f":"IF(LEN(Requirements_hidden!G31)>LEN(Question1),\"Hide\",\nIF(AND(COUNTIF(Questionnaire!$C$2:$M$43,Requirements_hidden!D31)>0,COUNTIF(Questionnaire!$C$2:$M$43,Requirements_hidden!D31)=COUNTIF(Questionnaire!$O$2:$Z$43,Requirements_hidden!D31)),\"Hide\",\"Unhide\"))","v":"Hide"},"Anvendelig","Tilgængelig via tastatur","2.1.1","Tastatur","Alle indholdets funktionaliteter kan betjenes via en tastaturgrænseflade uden at der er behov for specifik tidsindstilling af individuelle tastetryk, undtaget tilfælde, hvor den underliggende funktionalitet kræver input, der er afhængige af at kunne følge hele rækken af brugerens bevægelser og ikke blot slutpunkterne.","A","Alt kan gøres med et tastatur undtagen frihåndsbevægelser.","Sørg for, at markørhandlinger har en tilsvarende tastatur.","Mange mennesker er afhængige af tastaturgrænsefladen, herunder blinde og nogle bevægelseshæmmede."]
[{"$f":"IF(LEN(Requirements_hidden!G32)>LEN(Question1),\"Hide\",\nIF(AND(COUNTIF(Questionnaire!$C$2:$M$43,Requirements_hidden!D32)>0,COUNTIF(Questionnaire!$C$2:$M$43,Requirements_hidden!D32)=COUNTIF(Questionnaire!$O$2:$Z$43,Requirements_hidden!D32)),\"Hide\",\"Unhide\"))","v":"Hide"},"Anvendelig","Tilgængelig via tastatur","2.1.2","Ingen tastaturfælde","Hvis tastaturfokus kan flyttes til en af sidens komponenter ved hjælp af en tastaturgrænseflade, kan fokus fjernes fra denne komponent udelukkende ved hjælp af en tastaturgrænseflade. Hvis det kræver mere end utilpassede pile- eller tab-taster eller andre standard lukkemetoder, skal brugeren rådgives om metoden til at fjerne fokus.","A","Tastaturbrugere sidder ikke fast.","Sørg for, at brugerne altid ved, hvordan de navigerer væk fra komponenter.","Folk, der er afhængige af tastaturet, har ofte ingen andre måder at navigere på."]
[{"$f":"IF(LEN(Requirements_hidden!G33)>LEN(Question1),\"Hide\",\nIF(AND(COUNTIF(Questionnaire!$C$2:$M$43,Requirements_hidden!D33)>0,COUNTIF(Questionnaire!$C$2:$M$43,Requirements_hidden!D33)=COUNTIF(Questionnaire!$O$2:$Z$43,Requirements_hidden!D33)),\"Hide\",\"Unhide\"))","v":"Hide"},"Anvendelig","Tilgængelig via tastatur","2.1.3","Tastatur (ingen undtagelse)","Alle indholdets funktionaliteter skal kunne betjenes via en tastaturgrænseflade, uden at der kræves specifik tastehastighed.","AAA","Alt kan gøres med et tastatur.","Sørg for, at alle markørhandlinger har en tastaturækvivalent.","Folk, der kun kan bruge tastaturgrænsefladen, skal være i stand til at opnå alt."]
[{"$f":"IF(LEN(Requirements_hidden!G34)>LEN(Question1),\"Hide\",\nIF(AND(COUNTIF(Questionnaire!$C$2:$M$43,Requirements_hidden!D34)>0,COUNTIF(Questionnaire!$C$2:$M$43,Requirements_hidden!D34)=COUNTIF(Questionnaire!$O$2:$Z$43,Requirements_hidden!D34)),\"Hide\",\"Unhide\"))","v":"Hide"},"Anvendelig","Tilgængelig via tastatur","2.1.4","Genvejstaster","Hvis genvejstaster er implementeret i indhold kun ved hjælp af bogstaver (inklusiv store og små bogstaver), tegnsætning, tal eller symboltegn, gælder mindst et af følgende punkter:\nSlå fra: Der findes en mekanisme til at slå genvejen fra.\nÆndre: Der findes en mekanisme til at ændre genvejen, så den bruger en eller flere ikke-printbare tastaturtegn (for eksempel Ctrl, Alt og så videre).\nKun aktiv ved fokus: Tastaturgenvejen til en brugergrænsefladekomponent er kun aktiv, når komponenten er i fokus.","A","Reducer utilsigtet aktivering af tastaturgenveje.","Sørg for, at genvejstaster, der kun indeholder tegn, kan slås fra eller ændres.","Genveje med tegntaster er nemme at udløse ved et uheld, især med taleinput."]
[{"$f":"IF(LEN(Requirements_hidden!G35)>LEN(Question1),\"Hide\",\nIF(AND(COUNTIF(Questionnaire!$C$2:$M$43,Requirements_hidden!D35)>0,COUNTIF(Questionnaire!$C$2:$M$43,Requirements_hidden!D35)=COUNTIF(Questionnaire!$O$2:$Z$43,Requirements_hidden!D35)),\"Hide\",\"Unhide\"))","v":"Hide"},"Anvendelig","Passende tid","2.2.1","Justerbar Tidsbegrænsning (Timing)","For hver tidsbegrænsning, der er givet i indholdet, gælder mindst et af følgende punkter:\nSlå fra: Brugeren kan slukke for tidsbegrænsningen, før den udløber, eller\nTilpasse: Brugeren kan tilpasse tidsbegrænsningen, før den udløber, over en bred skala, der er mindst ti gange varigheden af standardindstillingen, eller\nUdvide: Brugeren advares, før tiden udløber, og får mindst 20 sekunder til at forlænge tidsbegrænsningen ved hjælp af en simpel handling (for eksempel ”tryk på mellemrumstasten”), og brugeren har mulighed for at forlænge tiden mindst ti gange, eller\nUndtagelse ved realtid: Tidsbegrænsningen er en nødvendig del af en begivenhed i realtid (for eksempel en auktion), og der findes ikke noget muligt alternativ til tidsbegrænsningen, eller\nNødvendig undtagelse: Tidsbegrænsningen er nødvendig, og en forlængelse vil gøre handlingen ugyldig, eller\n20 timers undtagelse: Tidsbegrænsningen varer længere end 20 timer.","A","Brugerne har tilstrækkelig tid til at udføre opgaver.","Giv brugerne mulighed for at deaktivere, justere eller forlænge tidsbegrænsninger.","Mennesker med handicap kan have brug for mere tid til at gennemføre aktiviteter."]
[{"$f":"IF(LEN(Requirements_hidden!G36)>LEN(Question1),\"Hide\",\nIF(AND(COUNTIF(Questionnaire!$C$2:$M$43,Requirements_hidden!D36)>0,COUNTIF(Questionnaire!$C$2:$M$43,Requirements_hidden!D36)=COUNTIF(Questionnaire!$O$2:$Z$43,Requirements_hidden!D36)),\"Hide\",\"Unhide\"))","v":"Hide"},"Anvendelig","Passende tid","2.2.2","Pause, stop, skjul","Ved bevægelse, blink, scroll eller automatisk opdatering af information gælder samtlige følgende punkter:\nBevægelse, blink, scrollning\nVed enhver form for bevægelse, blink eller scrollning af information, der (1) starter automatisk, (2) varer mere end fem sekunder og (3) præsenteres samtidigt med andet indhold, findes der en mekanisme, så brugeren kan stoppe, skjule eller sætte informationen på pause, medmindre bevægelsen, blinket eller scrollningen er en del af en handling, hvor dette er nødvendigt, og\nAutomatisk opdatering\nVed enhver form for automatisk opdatering af information, der (1) starter automatisk og (2) præsenteres samtidigt med andet indhold, findes der en mekanisme, som gør det muligt for brugeren at stoppe, skjule eller sætte opdateringen på pause, eller at kontrollere opdateringsfrekvensen, medmindre den automatiske opdatering er en del af en aktivitet, hvor dette er nødvendigt.","A","Færre brugere distraheres af indhold, der opdateres eller flyttes.","Lad brugerne styre indholdsændringer, der sker parallelt med andet indhold.","Nogle mennesker med kognitive handicap og opmærksomhedsunderskud distraheres af kontinuerlig bevægelse."]
[{"$f":"IF(LEN(Requirements_hidden!G37)>LEN(Question1),\"Hide\",\nIF(AND(COUNTIF(Questionnaire!$C$2:$M$43,Requirements_hidden!D37)>0,COUNTIF(Questionnaire!$C$2:$M$43,Requirements_hidden!D37)=COUNTIF(Questionnaire!$O$2:$Z$43,Requirements_hidden!D37)),\"Hide\",\"Unhide\"))","v":"Hide"},"Anvendelig","Passende tid","2.2.3","Ingen timing","Timing er ikke en nødvendig del af den begivenhed eller aktivitet, der præsenteres via indholdet, med undtagelse af ikke-interaktive, synkroniserede medier og begivenheder i realtid.","AAA","Brugere står ikke over for tidsbegrænsninger.","Brug ikke tidsbegrænsninger, undtagen for video og livebegivenheder.","Mennesker med handicap har ofte brug for mere tid til at gennemføre handlinger."]
[{"$f":"IF(LEN(Requirements_hidden!G38)>LEN(Question1),\"Hide\",\nIF(AND(COUNTIF(Questionnaire!$C$2:$M$43,Requirements_hidden!D38)>0,COUNTIF(Questionnaire!$C$2:$M$43,Requirements_hidden!D38)=COUNTIF(Questionnaire!$O$2:$Z$43,Requirements_hidden!D38)),\"Hide\",\"Unhide\"))","v":"Hide"},"Anvendelig","Passende tid","2.2.4","Afbrydelser","Afbrydelser skal kunne udskydes eller undertrykkes af brugeren. Undtaget herfra er afbrydelser, der skyldes en nødsituation.","AAA","Brugere afbrydes ikke.","Lad folk forsinke eller deaktivere opdateringer, undtagen i nødstilfælde.","Opdateringer distraherer og forstyrrer brugere af hjælpemidler og personer med opmærksomhedsproblemer."]
[{"$f":"IF(LEN(Requirements_hidden!G39)>LEN(Question1),\"Hide\",\nIF(AND(COUNTIF(Questionnaire!$C$2:$M$43,Requirements_hidden!D39)>0,COUNTIF(Questionnaire!$C$2:$M$43,Requirements_hidden!D39)=COUNTIF(Questionnaire!$O$2:$Z$43,Requirements_hidden!D39)),\"Hide\",\"Unhide\"))","v":"Hide"},"Anvendelig","Passende tid","2.2.5","Godkendelse på ny","Når en godkendt session udløber, kan brugeren fortsætte aktiviteten uden tab af data efter at have godkendt på ny.","AAA","Brugere mister ikke oplysninger eller kontekst på grund af gengodkendelse.","Bevar brugernes tidligere aktivitet og data gennem regodkendelse.","Nogle mennesker kan have brug for ekstra tid til at gennemføre en aktivitet."]
[{"$f":"IF(LEN(Requirements_hidden!G40)>LEN(Question1),\"Hide\",\nIF(AND(COUNTIF(Questionnaire!$C$2:$M$43,Requirements_hidden!D40)>0,COUNTIF(Questionnaire!$C$2:$M$43,Requirements_hidden!D40)=COUNTIF(Questionnaire!$O$2:$Z$43,Requirements_hidden!D40)),\"Hide\",\"Unhide\"))","v":"Hide"},"Anvendelig","Passende tid","2.2.6","Timeouts","Brugere advares om varigheden af enhver periode uden brugeraktivitet, der kan resultere i tab af data, medmindre data gemmes i mere end 20 timer, uden at brugeren foretager en handling.","AAA","Brugere mister ikke data på grund af ukendte timeouts.","Fortæl brugerne, hvor længe deres session kan være inaktiv, før de kan miste oplysninger.","Mennesker med handicap kan have brug for mere tid til at gennemføre handlinger."]
[{"$f":"IF(LEN(Requirements_hidden!G41)>LEN(Question1),\"Hide\",\nIF(AND(COUNTIF(Questionnaire!$C$2:$M$43,Requirements_hidden!D41)>0,COUNTIF(Questionnaire!$C$2:$M$43,Requirements_hidden!D41)=COUNTIF(Questionnaire!$O$2:$Z$43,Requirements_hidden!D41)),\"Hide\",\"Unhide\"))","v":"Hide"},"Anvendelig","Anfald og fysiske reaktioner","2.3.1","Grænseværdi på tre glimt eller derunder","Intet indhold på en webside glimter mere end tre gange på et sekund, eller glimtet ligger under grænseværdien for generelt glimt og rødt glimt.","A","Indhold udløser ikke anfald.","Undgå indhold, der blinker, eller hold det under tærskler.","Blinkende indhold kan forårsage migræne, svimmelhed, kvalme og anfald."]
[{"$f":"IF(LEN(Requirements_hidden!G42)>LEN(Question1),\"Hide\",\nIF(AND(COUNTIF(Questionnaire!$C$2:$M$43,Requirements_hidden!D42)>0,COUNTIF(Questionnaire!$C$2:$M$43,Requirements_hidden!D42)=COUNTIF(Questionnaire!$O$2:$Z$43,Requirements_hidden!D42)),\"Hide\",\"Unhide\"))","v":"Hide"},"Anvendelig","Anfald og fysiske reaktioner","2.3.2","Tre glimt","Websider indeholder intet indhold, der glimter mere end tre gange i løbet af et hvilket som helst sekund.","AAA","Indhold udløser ikke anfald.","Blink ikke indhold mere end 3 gange i sekundet.","Blinkende indhold kan forårsage migræne, svimmelhed, kvalme og anfald."]
[{"$f":"IF(LEN(Requirements_hidden!G43)>LEN(Question1),\"Hide\",\nIF(AND(COUNTIF(Questionnaire!$C$2:$M$43,Requirements_hidden!D43)>0,COUNTIF(Questionnaire!$C$2:$M$43,Requirements_hidden!D43)=COUNTIF(Questionnaire!$O$2:$Z$43,Requirements_hidden!D43)),\"Hide\",\"Unhide\"))","v":"Hide"},"Anvendelig","Anfald og fysiske reaktioner","2.3.3","Animation ved interaktion","Bevægelsesanimation, som er udløst af interaktion, kan deaktiveres, medmindre animationen er nødvendig for funktionaliteten eller informationen, som formidles.","AAA","Brugere bliver ikke skadet eller distraheret af bevægelse.","Understøtter brugerpræferencer for bevægelse, og eliminer unødvendige bevægelseseffekter.","Folk kan blive syge af bevægelseseffekter."]
[{"$f":"IF(LEN(Requirements_hidden!G44)>LEN(Question1),\"Hide\",\nIF(AND(COUNTIF(Questionnaire!$C$2:$M$43,Requirements_hidden!D44)>0,COUNTIF(Questionnaire!$C$2:$M$43,Requirements_hidden!D44)=COUNTIF(Questionnaire!$O$2:$Z$43,Requirements_hidden!D44)),\"Hide\",\"Unhide\"))","v":"Hide"},"Anvendelig","Navigerbar","2.4.1","Spring over blokke","Der findes en mekanisme til at springe over blokke af indhold, der gentages på flere websider.","A","Brugere kan lettere navigere med tastaturet.","Giv mulighed for at springe gentaget indhold over.","Brugere, der er afhængige af tastaturgrænsefladen, kan flytte rundt på sider effektivt."]
[{"$f":"IF(LEN(Requirements_hidden!G45)>LEN(Question1),\"Hide\",\nIF(AND(COUNTIF(Questionnaire!$C$2:$M$43,Requirements_hidden!D45)>0,COUNTIF(Questionnaire!$C$2:$M$43,Requirements_hidden!D45)=COUNTIF(Questionnaire!$O$2:$Z$43,Requirements_hidden!D45)),\"Hide\",\"Unhide\"))","v":"Hide"},"Anvendelig","Navigerbar","2.4.2","Sider har titler","Websider har titler, der beskriver emne eller formål.","A","Hver webside har en meningsfuld titel.","Angiv en beskrivende sidetitel ved hjælp af passende teknologi.","Sidetitler hjælper brugerne med at identificere og skelne mellem forskellige sider."]
[{"$f":"IF(LEN(Requirements_hidden!G46)>LEN(Question1),\"Hide\",\nIF(AND(COUNTIF(Questionnaire!$C$2:$M$43,Requirements_hidden!D46)>0,COUNTIF(Questionnaire!$C$2:$M$43,Requirements_hidden!D46)=COUNTIF(Questionnaire!$O$2:$Z$43,Requirements_hidden!D46)),\"Hide\",\"Unhide\"))","v":"Hide"},"Anvendelig","Navigerbar","2.4.3","Fokusrækkefølge","Hvis der kan navigeres sekventielt på en webside, og hvis navigationssekvenserne påvirker mening eller betjening, skal fokuserbare komponenter opnå fokus i en rækkefølge, der bevarer meningen eller betjeningsmulighederne.","A","Tastaturbrugere navigerer i indhold i den rigtige rækkefølge.","Elementer får fokus i en rækkefølge, der bevarer meningen.","Det giver mening at navigere på et websted eller en applikation med kun tastaturet."]
[{"$f":"IF(LEN(Requirements_hidden!G47)>LEN(Question1),\"Hide\",\nIF(AND(COUNTIF(Questionnaire!$C$2:$M$43,Requirements_hidden!D47)>0,COUNTIF(Questionnaire!$C$2:$M$43,Requirements_hidden!D47)=COUNTIF(Questionnaire!$O$2:$Z$43,Requirements_hidden!D47)),\"Hide\",\"Unhide\"))","v":"Hide"},"Anvendelig","Navigerbar","2.4.4","Formål med links (i kontekst)","Formålet med ethvert link kan bestemmes ud fra link-teksten alene eller ud fra link-teksten sammen med den link-kontekst, der er programmeringsmæssigt bestemt, undtaget herfra er tilfælde, hvor linkets formål vil forekomme flertydigt for alle brugere.","A","Brugerne forstår, hvad hvert link vil gøre.","Angiv beskrivende navne eller kontekst for alle links.","Mennesker med synshandicap og kognitive handicap kan lettere navigere."]
[{"$f":"IF(LEN(Requirements_hidden!G48)>LEN(Question1),\"Hide\",\nIF(AND(COUNTIF(Questionnaire!$C$2:$M$43,Requirements_hidden!D48)>0,COUNTIF(Questionnaire!$C$2:$M$43,Requirements_hidden!D48)=COUNTIF(Questionnaire!$O$2:$Z$43,Requirements_hidden!D48)),\"Hide\",\"Unhide\"))","v":"Hide"},"Anvendelig","Navigerbar","2.4.5","Flere måder","Der findes mere end en måde at lokalisere en webside på inden for en samling af websider. Undtaget er tilfælde, hvor websiden udgør et resultat af eller et trin i en proces.","AA","Brugere kan få adgang til indhold på flere måder.","Angiv mindst to muligheder for at nå frem til det samme indhold.","Ikke alle kan navigere i indhold på samme måde."]
[{"$f":"IF(LEN(Requirements_hidden!G49)>LEN(Question1),\"Hide\",\nIF(AND(COUNTIF(Questionnaire!$C$2:$M$43,Requirements_hidden!D49)>0,COUNTIF(Questionnaire!$C$2:$M$43,Requirements_hidden!D49)=COUNTIF(Questionnaire!$O$2:$Z$43,Requirements_hidden!D49)),\"Hide\",\"Unhide\"))","v":"Hide"},"Anvendelig","Navigerbar","2.4.6","Overskrifter og etiketter","Overskrifter og etiketter (labels) beskriver emne eller formål.","AA","En sides indhold er beskrevet i overskrifter og etiketter","Angiv beskrivende overskrifter og etiketter","Folk kan orientere sig, især dem med kognitive eller visuelle handicap."]
[{"$f":"IF(LEN(Requirements_hidden!G50)>LEN(Question1),\"Hide\",\nIF(AND(COUNTIF(Questionnaire!$C$2:$M$43,Requirements_hidden!D50)>0,COUNTIF(Questionnaire!$C$2:$M$43,Requirements_hidden!D50)=COUNTIF(Questionnaire!$O$2:$Z$43,Requirements_hidden!D50)),\"Hide\",\"Unhide\"))","v":"Hide"},"Anvendelig","Navigerbar"," 2.4.7"," Synligt fokus","Enhver tastaturbetjent brugergrænseflade har en betjeningstilstand, hvor tastaturfokusindikatoren er synlig.","AA","Brugere ved, hvilket element der har tastaturfokus.","Sørg for, at hvert element, der modtager fokus, har en synlig indikator.","Uden en fokusindikator kan brugere af seende tastaturer ikke betjene siden."]
[{"$f":"IF(LEN(Requirements_hidden!G51)>LEN(Question1),\"Hide\",\nIF(AND(COUNTIF(Questionnaire!$C$2:$M$43,Requirements_hidden!D51)>0,COUNTIF(Questionnaire!$C$2:$M$43,Requirements_hidden!D51)=COUNTIF(Questionnaire!$O$2:$Z$43,Requirements_hidden!D51)),\"Hide\",\"Unhide\"))","v":"Hide"},"Anvendelig","Navigerbar","2.4.8","Placering","Der findes information om brugerens placering inden for en samling af websider.","AAA","Brugerne ved, hvor de er på et sæt sider.","Brug brødkrummer, oversigter over websteder eller andre indikatorer til at give kontekst.","Placeringsindikatorer reducerer forvirring for mennesker med kognitive handicap."]
[{"$f":"IF(LEN(Requirements_hidden!G52)>LEN(Question1),\"Hide\",\nIF(AND(COUNTIF(Questionnaire!$C$2:$M$43,Requirements_hidden!D52)>0,COUNTIF(Questionnaire!$C$2:$M$43,Requirements_hidden!D52)=COUNTIF(Questionnaire!$O$2:$Z$43,Requirements_hidden!D52)),\"Hide\",\"Unhide\"))","v":"Hide"},"Anvendelig","Navigerbar","2.4.9","Formål med link (link alene)","Der findes en mekanisme som gør det muligt at identificere formålet med et link ud fra link-teksten alene. Undtaget herfra er tilfælde, hvor formålet med linket vil forekomme flertydigt for alle brugere.","AAA","Brugerne forstår, hvad hvert link vil gøre.","Angiv beskrivende navne til alle links.","Beskrivende linktekst er mere forståelig for alle brugere, især når de bruger hjælpeteknologi."]
[{"$f":"IF(LEN(Requirements_hidden!G53)>LEN(Question1),\"Hide\",\nIF(AND(COUNTIF(Questionnaire!$C$2:$M$43,Requirements_hidden!D53)>0,COUNTIF(Questionnaire!$C$2:$M$43,Requirements_hidden!D53)=COUNTIF(Questionnaire!$O$2:$Z$43,Requirements_hidden!D53)),\"Hide\",\"Unhide\"))","v":"Hide"},"Anvendelig","Navigerbar","2.4.10"," Sektionsoverskrifter","Sektionsoverskrifter anvendes til at organisere indhold.","AAA","Brugerne forstår, hvordan indhold er organiseret i sektioner.","Hvis indholdet er organiseret i sektioner, skal du angive sektionsoverskrifter.","Folk kan orientere sig, især dem med kognitive eller visuelle handicap."]
[{"$f":"IF(LEN(Requirements_hidden!G54)>LEN(Question1),\"Hide\",\nIF(AND(COUNTIF(Questionnaire!$C$2:$M$43,Requirements_hidden!D54)>0,COUNTIF(Questionnaire!$C$2:$M$43,Requirements_hidden!D54)=COUNTIF(Questionnaire!$O$2:$Z$43,Requirements_hidden!D54)),\"Hide\",\"Unhide\"))","v":"Hide"},"Anvendelig","Input Modalities","2.5.1","Pegebevægelser (Pointer Gestures)","Al funktionalitet, der betjenes ved hjælp af flerpunkts- eller stibaserede bevægelser (multipoint or path-based gestures), kan betjenes med et enkelt kontaktpunkt eller uden stibaseret bevægelse, medmindre en flerpunkts- eller stibaseret bevægelse er nødvendig.","A","Lad brugerne betjene berøringsskærme med én finger og reducerede bevægelser.","Giv enkeltpunktsbetjening til alle funktioner.","Ikke alle kan udføre komplekse og multi-touch-bevægelser."]
[{"$f":"IF(LEN(Requirements_hidden!G55)>LEN(Question1),\"Hide\",\nIF(AND(COUNTIF(Questionnaire!$C$2:$M$43,Requirements_hidden!D55)>0,COUNTIF(Questionnaire!$C$2:$M$43,Requirements_hidden!D55)=COUNTIF(Questionnaire!$O$2:$Z$43,Requirements_hidden!D55)),\"Hide\",\"Unhide\"))","v":"Hide"},"Anvendelig","Input Modalities","2.5.2","Pege-annullering","For funktionaliteter der kan betjenes ved hjælp af et enkelt pegepunkt, gælder mindst et af følgende punkter:\nIngen tryk-handling (Down-Event): Tryk-handlingen for pegebevægelsen bruges ikke til at udføre nogen del af funktionaliteten;\nAfbryd eller fortryd: Funktionaliteten udføres på slip-handlingen (Up-Event), og der findes en mekanisme til at afbryde funktionaliteten inden fuldførelse eller til at fortryde funktionaliteten efter udførelse;\nSlip-handling (Up-Event) medfører ophævning: Slip-handlingen (Up-Event) tilbagefører ethvert resultat af den foregående tryk-handling (Down-Event);\nNødvendig: Udførelse af funktionaliteten på tryk-handlingen (Down-Event) er nødvendig.","A","Reducer utilsigtet aktivering af kontroller med mus eller berøring.","Gør pointerannullering forudsigelig og konsekvent.","Gør det lettere for alle at komme sig over noget, de ikke havde til hensigt at gøre."]
[{"$f":"IF(LEN(Requirements_hidden!G56)>LEN(Question1),\"Hide\",\nIF(AND(COUNTIF(Questionnaire!$C$2:$M$43,Requirements_hidden!D56)>0,COUNTIF(Questionnaire!$C$2:$M$43,Requirements_hidden!D56)=COUNTIF(Questionnaire!$O$2:$Z$43,Requirements_hidden!D56)),\"Hide\",\"Unhide\"))","v":"Hide"},"Anvendelig","Input Modalities","2.5.3","Etiket i navn","For brugergrænsefladekomponenter med etiketter (labels), som indeholder tekst eller billeder af tekst, er navnet indeholdt i teksten, der præsenteres visuelt.","A","Den visuelle etiket for kontrolelementer er en udløser for taleaktivering.","Hvor det er praktisk, skal du få kontrolelementets tekstetiket og navn til at matche.","Folk, der arbejder med stemmeinteraktion, bruger de synlige etiketter i deres kommandoer."]
[{"$f":"IF(LEN(Requirements_hidden!G57)>LEN(Question1),\"Hide\",\nIF(AND(COUNTIF(Questionnaire!$C$2:$M$43,Requirements_hidden!D57)>0,COUNTIF(Questionnaire!$C$2:$M$43,Requirements_hidden!D57)=COUNTIF(Questionnaire!$O$2:$Z$43,Requirements_hidden!D57)),\"Hide\",\"Unhide\"))","v":"Hide"},"Anvendelig","Input Modalities","2.5.4","Betjening via bevægelse","Funktionalitet, der kan betjenes ved hjælp af bevægelse af en enhed (device) eller via brugerens bevægelse, kan også betjenes ved hjælp af brugergrænsefladekomponenter, og reaktion på bevægelsen kan deaktiveres for at undgå utilsigtet aktivering, undtagen når:\nUnderstøttet brugergrænseflade: Bevægelsen bruges til at betjene funktionalitet gennem en tilgængelighedsunderstøttet brugergrænseflade.\nNødvendig: Bevægelsen er nødvendig for funktionaliteten, og at gøre dette vil ugyldiggøre aktiviteten.","A","Indhold er ikke afhængigt af en brugers mulighed for at flytte en enhed.","Stol ikke udelukkende på enhedens bevægelse for at styre sidens indhold.","Nogle mennesker kan ikke holde eller flytte en enhed stabilt."]
[{"$f":"IF(LEN(Requirements_hidden!G58)>LEN(Question1),\"Hide\",\nIF(AND(COUNTIF(Questionnaire!$C$2:$M$43,Requirements_hidden!D58)>0,COUNTIF(Questionnaire!$C$2:$M$43,Requirements_hidden!D58)=COUNTIF(Questionnaire!$O$2:$Z$43,Requirements_hidden!D58)),\"Hide\",\"Unhide\"))","v":"Hide"},"Anvendelig","Input Modalities","2.5.5","Målstørrelse","Størrelsen på målet for pegeinput er mindst 44 gange 44 CSS-pixels, undtagen når:\nTilsvarende: Målet er tilgængeligt via et tilsvarende link eller en kontrol på den samme side, der er mindst 44 gange 44 CSS-pixels;\nIndlejret (inline): Målet er i en sætning eller tekstblok;\nKontrol styret af brugeragenten: Størrelsen på målet er bestemt af brugeragenten og er ikke blevet ændret af forfatteren; \nNødvendig: En bestemt præsentation af målet er nødvendig for den information, som formidles.","AAA","Betjeningsknapper kan betjenes lettere, især på berøringsskærme.","Lav brugerdefinerede mål på mindst 44 x 44 pixel.","Nogle mennesker kan ikke trykke på små genstande."]
[{"$f":"IF(LEN(Requirements_hidden!G59)>LEN(Question1),\"Hide\",\nIF(AND(COUNTIF(Questionnaire!$C$2:$M$43,Requirements_hidden!D59)>0,COUNTIF(Questionnaire!$C$2:$M$43,Requirements_hidden!D59)=COUNTIF(Questionnaire!$O$2:$Z$43,Requirements_hidden!D59)),\"Hide\",\"Unhide\"))","v":"Hide"},"Anvendelig","Input Modalities","2.5.6","Samtidige inputmekanismer","Webindhold begrænser ikke brugen af de inputmetoder, der er tilgængelige på en platform, undtagen når begrænsningen er nødvendig, påkrævet af hensyn til sikkerheden i indholdet eller nødvendig for at respektere brugerens indstillinger.","AAA","Brugere kan vælge forskellige måder at indtaste indhold på.","Forhindre ikke brugere i at skifte inputtilstand.","Folk kan muligvis ikke arbejde med kun én inputmetode."]
[{"$f":"IF(LEN(Requirements_hidden!G60)>LEN(Question1),\"Hide\",\nIF(AND(COUNTIF(Questionnaire!$C$2:$M$43,Requirements_hidden!D60)>0,COUNTIF(Questionnaire!$C$2:$M$43,Requirements_hidden!D60)=COUNTIF(Questionnaire!$O$2:$Z$43,Requirements_hidden!D60)),\"Hide\",\"Unhide\"))","v":"Hide"},"Forståelig","Læselig","3.1.1","Sproget på siden","Det menneskelige sprog, som er standard for hver webside, kan bestemmes programmeringsmæssigt.","A","Hjælpeteknologi kan bestemme sproget på en side.","Angiv det fremherskende sprog på en side.","Personer, der bruger hjælpemidler, får information på det rigtige sprog."]
[{"$f":"IF(LEN(Requirements_hidden!G61)>LEN(Question1),\"Hide\",\nIF(AND(COUNTIF(Questionnaire!$C$2:$M$43,Requirements_hidden!D61)>0,COUNTIF(Questionnaire!$C$2:$M$43,Requirements_hidden!D61)=COUNTIF(Questionnaire!$O$2:$Z$43,Requirements_hidden!D61)),\"Hide\",\"Unhide\"))","v":"Hide"},"Forståelig","Læselig","3.1.2","Sprog, der anvendes til dele af indhold","Det menneskelige sprog, der anvendes i hver passage eller frase i indholdet, kan bestemmes programmeringsmæssigt. Undtaget herfra er egennavne, tekniske termer, ord med ubestemmelig sproglig baggrund samt ord eller vendinger, der er blevet en del af sprogbrugen i den tekst, de umiddelbart indgår i.","AA","Hjælpeteknologi kan identificere de sprog, der bruges på en side.","Angiv, når ordene er på et andet sprog.","Personer, der bruger hjælpemidler, får information på det rigtige sprog."]
[{"$f":"IF(LEN(Requirements_hidden!G62)>LEN(Question1),\"Hide\",\nIF(AND(COUNTIF(Questionnaire!$C$2:$M$43,Requirements_hidden!D62)>0,COUNTIF(Questionnaire!$C$2:$M$43,Requirements_hidden!D62)=COUNTIF(Questionnaire!$O$2:$Z$43,Requirements_hidden!D62)),\"Hide\",\"Unhide\"))","v":"Hide"},"Forståelig","Læselig","3.1.3","Usædvanlige ord","Der findes en mekanisme, som gør det muligt at identificere specifikke definitioner af ord eller vendinger, der anvendes på en usædvanlig eller begrænset måde, herunder idiomer og jargon.","AAA","Brugere kan identificere og lære, hvad usædvanlige ord betyder.","Giv definitioner af teknisk jargon og usædvanlige termer.","Flere mennesker, især dem med kognitive handicap, kan forstå betydningen af indhold."]
[{"$f":"IF(LEN(Requirements_hidden!G63)>LEN(Question1),\"Hide\",\nIF(AND(COUNTIF(Questionnaire!$C$2:$M$43,Requirements_hidden!D63)>0,COUNTIF(Questionnaire!$C$2:$M$43,Requirements_hidden!D63)=COUNTIF(Questionnaire!$O$2:$Z$43,Requirements_hidden!D63)),\"Hide\",\"Unhide\"))","v":"Hide"},"Forståelig","Læselig","3.1.4","Forkortelser","Der findes en mekanisme, som gør det muligt at identificere den fulde form eller betydning af forkortelser.","AAA","Brugere kan identificere og lære, hvad forkortelser betyder.","Giv den udvidede form for forkortelser til brugerne.","Nogle mennesker, herunder dem med kognitive handicap, forstår måske ikke den forkortede form af ord."]
[{"$f":"IF(LEN(Requirements_hidden!G64)>LEN(Question1),\"Hide\",\nIF(AND(COUNTIF(Questionnaire!$C$2:$M$43,Requirements_hidden!D64)>0,COUNTIF(Questionnaire!$C$2:$M$43,Requirements_hidden!D64)=COUNTIF(Questionnaire!$O$2:$Z$43,Requirements_hidden!D64)),\"Hide\",\"Unhide\"))","v":"Hide"},"Forståelig","Læselig","3.1.5","Læseniveau","Når en tekst kræver et læseniveau, der er højere, end hvad der svarer til 7.-9./10. klasse efter at egennavne og titler er fjernet, skal der findes supplerende indhold eller en version, der ikke kræver et læseniveau, der er højere, end hvad der svarer til 7.-9./10. klasse.","AAA","Brugere kan få en forenklet version af komplekse oplysninger.","Når tekstoplysninger bliver komplekse, kan du oprette en mere letforståelig version.","Flere mennesker, især dem med kognitive handicap, kan forstå betydningen af indhold."]
[{"$f":"IF(LEN(Requirements_hidden!G65)>LEN(Question1),\"Hide\",\nIF(AND(COUNTIF(Questionnaire!$C$2:$M$43,Requirements_hidden!D65)>0,COUNTIF(Questionnaire!$C$2:$M$43,Requirements_hidden!D65)=COUNTIF(Questionnaire!$O$2:$Z$43,Requirements_hidden!D65)),\"Hide\",\"Unhide\"))","v":"Hide"},"Forståelig","Læselig","3.1.6","Udtale","Der findes en mekanisme som gør det muligt at identificere den præcise udtale af ord i de tilfælde, hvor betydning eller kontekst forekommer flertydig, hvis man ikke kender udtalen.","AAA","Brugere kan identificere udtalen af tvetydige ord.","Angiv, hvordan et ord skal udtales, hvor dets betydning ellers er uklar.","Nogle mennesker, herunder dem med kognitive handicap, forstår måske ikke betydningen af indhold."]
[{"$f":"IF(LEN(Requirements_hidden!G66)>LEN(Question1),\"Hide\",\nIF(AND(COUNTIF(Questionnaire!$C$2:$M$43,Requirements_hidden!D66)>0,COUNTIF(Questionnaire!$C$2:$M$43,Requirements_hidden!D66)=COUNTIF(Questionnaire!$O$2:$Z$43,Requirements_hidden!D66)),\"Hide\",\"Unhide\"))","v":"Hide"},"Forståelig","Forudsigelig","3.2.1","I fokus","Når en brugergrænsefladekomponent kommer i fokus, medfører dette ikke en ændring af kontekst.","A","Indhold kan navigeres mere forudsigeligt.","Du må ikke ændre en brugers kontekst, når elementer bliver fokuseret.","Indhold, der opfører sig forudsigeligt, er især vigtigt for personer med handicap."]
[{"$f":"IF(LEN(Requirements_hidden!G67)>LEN(Question1),\"Hide\",\nIF(AND(COUNTIF(Questionnaire!$C$2:$M$43,Requirements_hidden!D67)>0,COUNTIF(Questionnaire!$C$2:$M$43,Requirements_hidden!D67)=COUNTIF(Questionnaire!$O$2:$Z$43,Requirements_hidden!D67)),\"Hide\",\"Unhide\"))","v":"Hide"},"Forståelig","Forudsigelig","3.2.2","Ved input","Ændring af indstillingerne i en hvilken som helst brugergrænsefladekomponent medfører ikke automatisk ændring af kontekst, medmindre brugeren er blevet advaret herom, inden komponenten anvendes.","A","Indhold kan betjenes mere forudsigeligt.","Advar brugerne, hvis deres kontekst ændres baseret på deres input.","Indhold, der opfører sig forudsigeligt, er især vigtigt for personer med handicap."]
[{"$f":"IF(LEN(Requirements_hidden!G68)>LEN(Question1),\"Hide\",\nIF(AND(COUNTIF(Questionnaire!$C$2:$M$43,Requirements_hidden!D68)>0,COUNTIF(Questionnaire!$C$2:$M$43,Requirements_hidden!D68)=COUNTIF(Questionnaire!$O$2:$Z$43,Requirements_hidden!D68)),\"Hide\",\"Unhide\"))","v":"Hide"},"Forståelig","Forudsigelig","3.2.3","Konsekvent navigation","Navigationsmekanismer, der gentages på flere websider inden for en samling af websider, skal optræde i samme relative rækkefølge, hver gang de gentages, medmindre brugeren selv foretager en ændring.","AA","Indhold kan navigeres mere forudsigeligt.","Konsekvent rækkefølge navigation, der gentages på tværs af flere sider.","Indhold, der opfører sig forudsigeligt, er især vigtigt for personer med handicap."]
[{"$f":"IF(LEN(Requirements_hidden!G69)>LEN(Question1),\"Hide\",\nIF(AND(COUNTIF(Questionnaire!$C$2:$M$43,Requirements_hidden!D69)>0,COUNTIF(Questionnaire!$C$2:$M$43,Requirements_hidden!D69)=COUNTIF(Questionnaire!$O$2:$Z$43,Requirements_hidden!D69)),\"Hide\",\"Unhide\"))","v":"Hide"},"Forståelig","Forudsigelig","3.2.4","Konsekvent identifikation","Komponenter med samme funktionalitet inden for en række websider skal defineres konsekvent.","AA","Handlinger er mere forudsigelige på tværs af sider.","Identificer gentagne funktioner konsekvent.","Konsekvent identificerede foranstaltninger er særligt vigtige for personer med handicap."]
[{"$f":"IF(LEN(Requirements_hidden!G70)>LEN(Question1),\"Hide\",\nIF(AND(COUNTIF(Questionnaire!$C$2:$M$43,Requirements_hidden!D70)>0,COUNTIF(Questionnaire!$C$2:$M$43,Requirements_hidden!D70)=COUNTIF(Questionnaire!$O$2:$Z$43,Requirements_hidden!D70)),\"Hide\",\"Unhide\"))","v":"Hide"},"Forståelig","Forudsigelig","3.2.5","Ændring på anmodning","Kontekstændringer iværksættes alene på baggrund af en brugeranmodning, eller der findes en mekanisme som gør det muligt at slå sådanne ændringer fra.","AAA","Brugerne har fuld kontrol over større indholdsændringer.","Giv brugerne mulighed for at udløse eller deaktivere ændringer af kontekst.","Indhold, der opfører sig forudsigeligt, er især vigtigt for personer med handicap."]
[{"$f":"IF(LEN(Requirements_hidden!G71)>LEN(Question1),\"Hide\",\nIF(AND(COUNTIF(Questionnaire!$C$2:$M$43,Requirements_hidden!D71)>0,COUNTIF(Questionnaire!$C$2:$M$43,Requirements_hidden!D71)=COUNTIF(Questionnaire!$O$2:$Z$43,Requirements_hidden!D71)),\"Hide\",\"Unhide\"))","v":"Hide"},"Forståelig","Inputhjælp","3.3.1","Identifikation af fejl","Hvis en inputfejl registreres automatisk, skal det fejlbehæftede element identificeres, og fejlen beskrives for brugeren ved hjælp af tekst.","A","Brugere ved, at der findes en fejl, og hvad der er galt.","Giv beskrivende meddelelse om fejl.","Markering af fejl hjælper personer med nedsat syn og kognitive handicap med at løse dem."]
[{"$f":"IF(LEN(Requirements_hidden!G72)>LEN(Question1),\"Hide\",\nIF(AND(COUNTIF(Questionnaire!$C$2:$M$43,Requirements_hidden!D72)>0,COUNTIF(Questionnaire!$C$2:$M$43,Requirements_hidden!D72)=COUNTIF(Questionnaire!$O$2:$Z$43,Requirements_hidden!D72)),\"Hide\",\"Unhide\"))","v":"Hide"},"Forståelig","Inputhjælp","3.3.2","Etiketter eller instruktioner","Der findes etiketter eller instruktioner, når indhold kræver brugerinput.","A","Brugerne ved, hvilke oplysninger de skal indtaste.","Giv etiketter eller instruktioner til input.","Alle, især dem med kognitive handicap, vil vide, hvordan de skal reagere."]
[{"$f":"IF(LEN(Requirements_hidden!G73)>LEN(Question1),\"Hide\",\nIF(AND(COUNTIF(Questionnaire!$C$2:$M$43,Requirements_hidden!D73)>0,COUNTIF(Questionnaire!$C$2:$M$43,Requirements_hidden!D73)=COUNTIF(Questionnaire!$O$2:$Z$43,Requirements_hidden!D73)),\"Hide\",\"Unhide\"))","v":"Hide"},"Forståelig","Inputhjælp","3.3.3","Fejlforslag","Hvis en inputfejl registreres automatisk, og der findes forslag til rettelse af fejlen, skal forslagene præsenteres for brugeren, medmindre dette ville undergrave sikkerheden eller indholdets formål.","AA","Brugerne får forslag til, hvordan de kan løse fejl.","Hvis der opdages fejl, skal du foreslå kendte måder at rette dem på.","Folk kan løse fejl hurtigere og med reduceret indsats."]
[{"$f":"IF(LEN(Requirements_hidden!G74)>LEN(Question1),\"Hide\",\nIF(AND(COUNTIF(Questionnaire!$C$2:$M$43,Requirements_hidden!D74)>0,COUNTIF(Questionnaire!$C$2:$M$43,Requirements_hidden!D74)=COUNTIF(Questionnaire!$O$2:$Z$43,Requirements_hidden!D74)),\"Hide\",\"Unhide\"))","v":"Hide"},"Forståelig","Inputhjælp","3.3.4","Forhindring af fejl (juridisk, økonomisk, data)","For websider, som medfører juridiske forpligtelser eller økonomiske transaktioner for brugeren, som tilpasser eller sletter brugerkontrollerede data i datalagringssystemer, eller som afleverer svar på test udført af brugeren, skal mindst et af følgende punkter gælde:\nReversibel: Det sendte er reversibelt.\nTjek: Data, der indtastes af brugeren, tjekkes for inputfejl, og brugeren får mulighed for at rette fejlene.\nBekræftelse: Der findes en mekanisme som gør det muligt at gennemse, bekræfte eller rette information, før forsendelsen afsluttes.","AA","Brugere kan undgå at indsende forkerte vigtige oplysninger.","Giv brugerne mulighed for at bekræfte, rette eller tilbageføre vigtige indsendelser.","Mennesker med handicap kan være mere tilbøjelige til at begå fejl eller ikke bemærke dem."]
[{"$f":"IF(LEN(Requirements_hidden!G75)>LEN(Question1),\"Hide\",\nIF(AND(COUNTIF(Questionnaire!$C$2:$M$43,Requirements_hidden!D75)>0,COUNTIF(Questionnaire!$C$2:$M$43,Requirements_hidden!D75)=COUNTIF(Questionnaire!$O$2:$Z$43,Requirements_hidden!D75)),\"Hide\",\"Unhide\"))","v":"Hide"},"Forståelig","Inputhjælp","3.3.5","Hjælp","Der findes kontekstafhængig hjælp.","AAA","Brugere kan undgå at begå fejl.","Giv hjælp til brugere om den funktion, der udføres i øjeblikket.","Mennesker med kognitive eller andre handicap kan lettere udføre deres opgaver."]
[{"$f":"IF(LEN(Requirements_hidden!G76)>LEN(Question1),\"Hide\",\nIF(AND(COUNTIF(Questionnaire!$C$2:$M$43,Requirements_hidden!D76)>0,COUNTIF(Questionnaire!$C$2:$M$43,Requirements_hidden!D76)=COUNTIF(Questionnaire!$O$2:$Z$43,Requirements_hidden!D76)),\"Hide\",\"Unhide\"))","v":"Hide"},"Forståelig","Inputhjælp","3.3.6","Forhindring af fejl (alle)","For websider, hvor det kræves at brugeren sender information, skal mindst et af følgende punkter være gældende:\nReversibel: Det sendte er reversibelt.\nTjek: Data, der indtastes af brugeren, tjekkes for inputfejl, og brugeren får mulighed for at rette fejlene.\nBekræftelse: Der findes en mekanisme, som gør det muligt at gennemse, bekræfte og rette information, før forsendelsen afsluttes.","AAA","Brugere kan undgå at indsende forkerte oplysninger.","Giv brugerne mulighed for at bekræfte, rette eller tilbageføre eventuelle indsendelser.","Mennesker med handicap kan være mere tilbøjelige til at begå fejl eller ikke bemærke dem."]
[{"$f":"IF(LEN(Requirements_hidden!G77)>LEN(Question1),\"Hide\",\nIF(AND(COUNTIF(Questionnaire!$C$2:$M$43,Requirements_hidden!D77)>0,COUNTIF(Questionnaire!$C$2:$M$43,Requirements_hidden!D77)=COUNTIF(Questionnaire!$O$2:$Z$43,Requirements_hidden!D77)),\"Hide\",\"Unhide\"))","v":"Hide"},"Robust","Kompatible","4.1.1","Parsing","I indhold, der er implementeret ved hjælp af opmærkningssprog, har elementerne komplette start- og sluttags, elementerne er indlejrede efter deres specifikationer, de indeholder ikke attribut-dubletter og ID’er er unikke; undtagen hvor specifikationerne tillader det.","A","Hjælpeteknologi kan præsentere sideindhold korrekt.","Opret websider i henhold til specifikationer.","Folk kan nemmere gennemse webindhold med deres hjælpeteknologi."]
[{"$f":"IF(LEN(Requirements_hidden!G78)>LEN(Question1),\"Hide\",\nIF(AND(COUNTIF(Questionnaire!$C$2:$M$43,Requirements_hidden!D78)>0,COUNTIF(Questionnaire!$C$2:$M$43,Requirements_hidden!D78)=COUNTIF(Questionnaire!$O$2:$Z$43,Requirements_hidden!D78)),\"Hide\",\"Unhide\"))","v":"Hide"},"Robust","Kompatible","4.1.2","Navn, rolle, værdi","For alle brugergrænsefladekomponenter (herunder, men ikke alene formularelementer, links og komponenter, der er genereret via scripts) gælder det, at navn og rolle kan bestemmes programmeringsmæssigt. Tilstande, egenskaber og værdier, der kan indstilles af brugeren, kan indstilles programmeringsmæssigt, og besked om ændringer i disse elementer kan tilgås af brugeragenter, herunder kompenserende teknologier.","A","Folk, der bruger hjælpemidler, forstår alle komponenter.","Giv komponenterne korrekte navne, roller, tilstande og værdier.","Hjælpeteknologi fungerer kun godt, når koden er udført korrekt."]
[{"$f":"IF(LEN(Requirements_hidden!G79)>LEN(Question1),\"Hide\",\nIF(AND(COUNTIF(Questionnaire!$C$2:$M$43,Requirements_hidden!D79)>0,COUNTIF(Questionnaire!$C$2:$M$43,Requirements_hidden!D79)=COUNTIF(Questionnaire!$O$2:$Z$43,Requirements_hidden!D79)),\"Hide\",\"Unhide\"))","v":"Hide"},"Robust","Kompatible","4.1.3","Statusbeskeder","I indhold, der er implementeret ved hjælp af opmærkningssprog, kan statusbeskeder bestemmes programmeringsmæssigt ved hjælp af rolle eller egenskaber, sådan at de kan præsenteres for brugere af kompenserende teknologier uden at opnå fokus.","AA","Gør brugerne opmærksomme på vigtige ændringer i indholdet.","Lad hjælpeteknologi give brugerne besked om statusændringer, der ikke tager fokus.","Folk, der ikke ser beskeder, skal informeres om dem."]

{"sheet":"Questionnaire","index":4,"n_rows":21,"n_cols":26,"rows_kept":21,"cut":false,"hidden":true,"merged":[]}
["Spørgsmål nr.","OBS! De krav der er oplistet i kolonne B og frem er de krav der skal scopes fra","Requirement IDs related to each question",null,null,null,null,null,null,null,null,null,null,null,"Shown IDs will be hidden from the requirements"]
[2,"Bruger løsningen videoindhold?","1.1.1","1.2.1","1.2.2","1.2.3","1.2.5","1.2.6","1.2.7",null,null,null,null,null,{"$f":"IF(Question2=\"Nej\",C2,\"\")","v":""},"","","","","","","",{"$f":"IF(Question2=\"Nej\",J2,\"\")","v":""},"","",""]
[3,"Bruger løsningen lydindhold?","1.1.1","1.2.1","1.2.2","1.2.3","1.4.2","1.4.7",null,null,null,null,null,null,{"$f":"IF(Question3=\"Nej\",C3,\"\")","v":""},"","","","","","","",{"$f":"IF(Question3=\"Nej\",J3,\"\")","v":""},"","",""]
[4,"Inkluderer løsningen live streaming eller webcasts?","1.2.4","1.2.9",null,null,null,null,null,null,null,null,null,null,{"$f":"IF(Question4=\"Nej\",C4,\"\")","v":""},"","","","","","","",{"$f":"IF(Question4=\"Nej\",J4,\"\")","v":""},"","",""]
[5,"Indeholder løsningen billeder med tekst indhold?","1.4.3","1.4.4","1.4.5","1.4.6","1.4.9",null,null,null,null,null,null,null,{"$f":"IF(Question5=\"Nej\",C5,\"\")","v":""}]
[6,"Indeholder løsningen formularer, som brugerne skal udfylde?","1.3.3","1.3.5","3.3.1","4.1.2",null,null,null,null,null,null,null,null,{"$f":"IF(Question6=\"Nej\",C6,\"\")","v":""},"","","","","","","","","","",""]
[7,"Benytter løsningen tekst?","1.3.2","1.4.3","1.4.4","1.4.6","1.4.8","2.4.6","2.4.10","3.1.1","3.1.2",null,null,null,{"$f":"IF(Question7=\"Nej\",C7,\"\")","v":""},"","","","","","","","","","",""]
[8,"Benytter løsningen ikke-tekstindhold (f.eks. billeder, ikoner)?","1.4.1","1.4.3","2.3.3","2.5.3",null,null,null,null,null,null,null,null,{"$f":"IF(Question8=\"Nej\",C8,\"\")","v":""},"","","","","","","","","","",""]
[9,"Benytter løsningen farve til at formidle information?","1.4.1",null,null,null,null,null,null,null,null,null,null,null,{"$f":"IF(Question9=\"Nej\",C9,\"\")","v":""},"","","","","","","","","","",""]
[10,"Kan løsningen bruges på mobile enheder (Smartphones og tablets)?","1.3.4","2.5.4",null,null,null,null,null,null,null,null,null,null,{"$f":"IF(Question10=\"Nej\",C10,\"\")","v":""},"","","","","","","",{"$f":"IF(Question10=\"Nej\",J10,\"\")","v":""},{"$f":"IF(Question10=\"Nej\",K10,\"\")","v":""},{"$f":"IF(Question10=\"Nej\",L10,\"\")","v":""},{"$f":"IF(Question10=\"Nej\",M10,\"\")","v":""}]
[11,"Har løsningen tidsbegrænsninger for brugerhandlinger?","2.2.1","2.2.3","2.2.4","2.2.5","2.2.6",null,null,null,null,null,null,null,{"$f":"IF(Question11=\"Nej\",C11,\"\")","v":""},"","","","","","","",{"$f":"IF(Question11=\"Nej\",J11,\"\")","v":""},{"$f":"IF(Question11=\"Nej\",K11,\"\")","v":""},{"$f":"IF(Question11=\"Nej\",L11,\"\")","v":""},{"$f":"IF(Question11=\"Nej\",M11,\"\")","v":""}]
[12,"Indeholder løsningen indhold, der bevæger sig, blinker eller opdateres automatisk?","2.2.2","2.3.1","2.3.2",null,null,null,null,null,null,null,null,null,{"$f":"IF(Question12=\"Nej\",D12,\"\")","v":""},"","","","","","","",{"$f":"IF(Question12=\"Nej\",J12,\"\")","v":""},{"$f":"IF(Question12=\"Nej\",K12,\"\")","v":""},{"$f":"IF(Question12=\"Nej\",L12,\"\")","v":""},{"$f":"IF(Question12=\"Nej\",M12,\"\")","v":""}]
[13,"Indeholder løsningen indehold som kræver instruktioner?","1.3.3","1.4.1","3.3.2","3.3.5",null,null,null,null,null,null,null,null,{"$f":"IF(Question13=\"Nej\",C13,\"\")","v":""},"","","","","","","","",{"$f":"IF(Question13=\"Nej\",K13,\"\")","v":""},{"$f":"IF(Question13=\"Nej\",L13,\"\")","v":""},{"$f":"IF(Question13=\"Nej\",M13,\"\")","v":""}]
[14,"Undersøtter løsningen brugerinput?","2.5.6","3.2.2","3.2.5","3.3.2","3.3.3",null,null,null,null,null,null,null,{"$f":"IF(Question14=\"Nej\",C14,\"\")","v":""},"","","","","","","","",{"$f":"IF(Question14=\"Nej\",K14,\"\")","v":""},{"$f":"IF(Question14=\"Nej\",L14,\"\")","v":""},{"$f":"IF(Question14=\"Nej\",M14,\"\")","v":""}]
[15,"Indeholder løsningen links?","2.4.4","2.4.9","4.1.2",null,null,null,null,null,null,null,null,null,{"$f":"IF(Question15=\"Nej\",C15,\"\")","v":""},"","","","","","","","",{"$f":"IF(Question15=\"Nej\",K15,\"\")","v":""},{"$f":"IF(Question15=\"Nej\",L15,\"\")","v":""},{"$f":"IF(Question15=\"Nej\",M15,\"\")","v":""}]
[16,"Har brugeren mulighed for at sende information fra løsningen?","3.3.4","3.3.6",null,null,null,null,null,null,null,null,null,null,{"$f":"IF(Question16=\"Nej\",C16,\"\")","v":""},"","","","","","","","",{"$f":"IF(Question16=\"Nej\",K16,\"\")","v":""},{"$f":"IF(Question16=\"Nej\",L16,\"\")","v":""},{"$f":"IF(Question16=\"Nej\",M16,\"\")","v":""}]
[17,"Understøtter løsningen interaktioner med berøringsskærm?","2.5.1","2.5.2","2.5.5",null,null,null,null,null,null,null,null,null,{"$f":"IF(Question17=\"Nej\",C17,\"\")","v":""},"","","","","","","","","",{"$f":"IF(Question17=\"Nej\",L17,\"\")","v":""},{"$f":"IF(Question17=\"Nej\",M17,\"\")","v":""}]
[18,"Er der i løsningen indhold som er implementeret ved hjælp af opmærkningssprog?","1.3.6","1.4.12","4.1.1",null,null,null,null,null,null,null,null,null,{"$f":"IF(Question18=\"Nej\",C18,\"\")","v":""},"","","","","","","","",{"$f":"IF(Question18=\"Nej\",K18,\"\")","v":""},{"$f":"IF(Question18=\"Nej\",L18,\"\")","v":""},{"$f":"IF(Question18=\"Nej\",M18,\"\")","v":""}]
[19,"Bruger applikationen forkortelser, usædvanlige ord eller et sprog der kræver et bestemt læseniveau?","3.1.3","3.1.4","3.1.5","3.1.6",null,null,null,null,null,null,null,null,{"$f":"IF(Question19=\"Nej\",C19,\"\")","v":""},"","","","","","","","","",{"$f":"IF(Question19=\"Nej\",L19,\"\")","v":""},{"$f":"IF(Question19=\"Nej\",M19,\"\")","v":""}]
[20,"Består løsningen af flere sider (websider)?","2.4.1","2.4.2","2.4.5","2.4.8","3.2.3","3.2.4",null,null,null,null,null,null,{"$f":"IF(Question20=\"Nej\",C20,\"\")","v":""},"","","","","","","","","","",{"$f":"IF(Question20=\"Nej\",M20,\"\")","v":""}]
[21,"Løsningen understøtter at brugerne interagerer med indhold ved hjælp af et tastatur?","2.1.1","2.1.2","2.1.3","2.1.4","2.4.3","2.4.7",null,null,null,null,null,null,{"$f":"IF(Question21=\"Nej\",C21,\"\")","v":""},"","","","","","","","","","",""]

{"sheet":"Hjælp","index":5,"n_rows":23,"n_cols":2,"rows_kept":23,"cut":false,"hidden":false,"merged":[]}
["Regnearket indeholder **WCAG-overensstemmelsesspørgeskemaet**."]
["Nr. ","Spørgsmål"]
[1,"Hvilket niveau af overholdelse af WCAG-krav skal imødekommes?\n*AA = Adresserer de mest almindelige barrierer. Sigter mod at gøre indhold tilgængeligt for et bredere publikum. **AAA (højeste niveau) = Højeste niveau af tilgængelighed. Sikrer, at indhold er tilgængeligt for det størst mulige antal personer, herunder personer med alvorlige handicap."]
[2,"Bruger løsningen videoindhold?"]
[3,"Bruger løsningen lydindhold?"]
[4,"Inkluderer løsningen live streaming* eller webcasts**?\n*Det er muligt at sende video og lyd direkte over internettet i realtid, så seerne kan følge med, mens det sker.\n** Online udsendelser, der kan være enten live eller optaget, og som distribueres over internettet til et bredt publikum. Webcasts kan indeholde video, lyd og præsentationer."]
[5,"Indeholder løsningen billeder med tekst indhold?"]
[6,"Indeholder løsningen formularer, som brugerne skal udfylde?"]
[7,"Benytter løsningen tekst?"]
[8,"Benytter løsningen ikke-tekstindhold (f.eks. billeder, ikoner)?"]
[9,"Benytter løsningen farve til at formidle information?\nFarver kan være et effektivt værktøj til at formidle information, især når det kommer til datavisualisering og design.\n\nEksempel: Trafiklysdiagram er en almindelig metode til at bruge farver til at formidle information hurtigt og intuitivt. \nRød: Indikerer en kritisk eller problematisk status, hvor der er behov for øjeblikkelig handling eller opmærksomhed.\nGul: Signalerer en advarsel eller et område, der kræver overvågning, men som ikke er kritisk.\nGrøn: Viser, at alt er i orden, og der er ingen problemer."]
[10,"Kan løsningen bruges på mobile enheder (Smartphones og tablets)?"]
[11,"Har løsningen *tidsbegrænsninger for brugerhandlinger?\n*Ved tidsbegrænsninger referes til den tid en bruger har til at fuldføre en opgave eller interaktion på en hjemmeside eller webapplikation."]
[12,"Indeholder løsningen indhold, der bevæger sig, blinker eller opdateres automatisk?"]
[13,"Indeholder løsningen indehold som kræver *instruktioner?\nInstruktioner i konteksten af webtilgængelighed er vejledninger, der hjælper brugere med at forstå og interagere med indholdet på en hjemmeside eller webapplikation. \n\nEksempel: \"Udfyld alle felter markeret med en stjerne (*), da de er obligatoriske.\""]
[14,"Understøtter løsningen brugerinput*?\nBruger input referet til enhver form for data eller information, som en bruger indtaster eller leverer til en hjemmeside eller webapplikation. Dette kan omfatte tekst, valg, klik, bevægelser og andre interaktioner. "]
[15,"Indeholder løsningen links*?\n*Links til klikbare elementer på en hjemmeside eller webapplikation, der fører brugeren til en anden side, sektion eller ressource."]
[16,"Har brugeren mulighed for at sende information fra løsningen?"]
[17,"Understøtter løsningen interaktioner med berøringsskærm*?\n*Der refereres til, om en hjemmeside eller webapplikation er designet til og er tilgængelig for brugere, der benytter berøringsskærmsenheder, såsom smartphones og tablets. "]
[18,"Er der i løsningen indhold som er implementeret ved hjælp af opmærkningssprog*?\n*Opmærkningssprog til de koder og strukturer, der anvendes til at opbygge og beskrive indholdet på en hjemmeside eller webapplikation. Det mest almindelige opmærkningssprog er HTML (HyperText Markup Language), som bruges til at strukturere webindhold. "]
[19,"Bruger løsningen forkortelser, usædvanlige ord eller et sprog der kræver et bestemt læseniveau?"]
[20,"Består løsningen af flere sider (websider)?\nReferer til den struktur og organiseringen af en hjemmeside eller webapplikation, der er opdelt i forskellige sektioner eller sider. "]
[21,"Løsningen understøtter at brugerne interagerer med indhold ved hjælp af et tastatur?"]

{"sheet":"Level of Conformance","index":6,"n_rows":7,"n_cols":3,"rows_kept":7,"cut":false,"hidden":true,"merged":[]}
[]
["Level",null,": Essential accessibility features. Without these, some users cannot access content."]
["Level","AA",": Addresses the most common barriers. Aims to make content accessible to a broader audience."]
["Level","AAA",": Highest level of accessibility. Ensures content is accessible to the maximum number of people, including those with severe disabilities."]
[]
[null,"Ja "]
[null,"Nej"]

{"sheet":"Requirements","index":7,"n_rows":79,"n_cols":7,"rows_kept":79,"cut":false,"hidden":true,"merged":[]}
["Principper","Retningslinjer","Nr.","Succeskriterier","Beskrivelse","Level ","Examples"]
["Opfattelig","Tekstbaserede alternativer","1.1.1","Ikke-tekstbaseret indhold","Alt ikke-tekstbaseret indhold, der præsenteres for brugeren, har tilknyttet et tekstbaseret alternativ, som har samme formål, undtaget nedenstående situationer.","A"]
["Opfattelig","Tidsafhængige medier","1.2.1","Rent lydindhold (audio only) og rent videoindhold (video only) (forudindspillet)","For forudindspillet rent lydindhold og forudindspillet rent videoindhold gælder følgende, undtagen når video eller lyd udgør et mediealternativ til tekst og klart er markeret som sådan","A"]
["Opfattelig","Tidsafhængige medier","1.2.2","Undertekster (forudindspillet)","Der skal leveres undertekster til alt forudindspillet lydindhold i synkroniserede medier, undtaget når medier fungerer som mediealternativ til tekst og er klart markeret som sådan.","A"]
["Opfattelig","Tidsafhængige medier","1.2.3","Synstolkning eller mediealternativ (forudindspillet)","Der skal leveres et alternativ til tidsafhængige medier eller synstolkning af forudindspillet/ videoindhold i synkroniserede medier, undtagen når medierne er mediealternativ til tekst og er klart markeret som sådan.","A"]
["Opfattelig","Tidsafhængige medier","1.2.4","Undertekster (direkte)","Der skal leveres undertekster til alt direkte udsendt lydindhold i synkroniserede medier","AA"]
["Opfattelig","Tidsafhængige medier","1.2.5","Synstolkning (forudindspillet)","Der skal leveres synstolkning til alt forudindspillet videoindhold i synkroniserede medier.","AA"]
["Opfattelig","Tidsafhængige medier","1.2.6","Tegnsprog (forudindspillet)","Der skal leveres tegnsprogstolkning til alt forudindspillet lydindhold i synkroniserede medier.","AAA"]
["Opfattelig","Tidsafhængige medier","1.2.7","Udvidet synstolkning (forudindspillet)","I tilfælde, hvor pauserne i forgrundslyden ikke er tilstrækkeligt lange til at tillade synstolkning til formidling af videoens betydning, skal der leveres udvidet synstolkning til alt forudindspillet videoindhold i synkroniserede medier.","AAA"]
["Opfattelig","Tidsafhængige medier","1.2.8","Mediealternativ (forudindspillet)","Der skal leveres et alternativ til alle forudindspillede synkroniserede medier samt alle forudindspillede rene videomedier.","AAA"]
["Opfattelig","Tidsafhængige medier","1.2.9","Rent lydindhold (direkte)","Der skal leveres et alternativ til tidsafhængige medier, som præsenterer information, der svarer til den rene, direkte udsendte lyd.","AAA"]
["Opfattelig","Tilpasset","1.3.1","Information og relationer","Information, struktur, og relationer der formidles via præsentationen, kan bestemmes programmeringsmæssigt eller er tilgængelige som tekst.","A"]
["Opfattelig","Tilpasset","1.3.2","Meningsfuld rækkefølge","Når den rækkefølge som indhold præsenteres i, påvirker indholdets mening, kan en korrekt læserækkefølge bestemmes programmeringsmæssigt.","A"]
["Opfattelig","Tilpasset","1.3.3","Sensoriske egenskaber","Instruktioner, der vedrører forståelse og betjening af indhold, er ikke udelukkende afhængige af komponenternes sensoriske egenskaber såsom form, størrelse, visuel placering, orientering eller lyd.","A"]
["Opfattelig","Tilpasset","1.3.4","Retning","Indhold begrænser ikke sin visning eller anvendelse til en enkelt skærmretning, såsom lodret eller vandret, medmindre en bestemt skærmretning er nødvendig.","AA"]
["Opfattelig","Tilpasset","1.3.5","Identificering af inputformål","Formålet med hvert inputfelt, der indhenter information om brugeren, kan bestemmes programmeringsmæssigt, når:\n\n- Inputfeltet tjener et formål, der er identificeret i sektionen Inputformål for brugergrænsefladekomponenter, og\n- Indholdet er implementeret med teknologier, som understøtter identifikation af den forventede betydning af inputoplysninger.","AA"]
["Opfattelig","Tilpasset","1.3.6","Identificering af formål","I indhold, der er implementeret ved hjælp af opmærkningssprog, kan formålet med brugergrænsefladekomponenter, ikoner og regioner bestemmes programmeringsmæssigt.","AAA"]
["Opfattelig","Adskillelig","1.4.1","Anvendelse af farve","Farve er ikke det eneste visuelle middel, der anvendes til at formidle information, gøre opmærksom på en handling, anmode om respons eller udskille et visuelt element.","A"]
["Opfattelig","Adskillelig","1.4.2","Kontrol af lyd","Hvis eventuel lyd på en webside spiller automatisk i mere end tre sekunder, skal der enten være en mekanisme, som kan anvendes til at afbryde lyden helt eller midlertidigt, eller der skal findes en mekanisme, som kan regulere lydstyrken uafhængigt af systemets generelle lydniveau.","A"]
["Opfattelig","Adskillelig","1.4.3","Kontrast (minimum)","Den visuelle præsentation af tekst og billeder af tekst skal have et kontrastforhold på mindst 4,5:1, undtagen i følgende situationer:\nStor skrift: Tekst og billeder af tekst i stor skrift har et kontrastforhold på mindst 3:1.\nIkke betydningsbærende: Tekst eller billeder af tekst, der udgør en del af en inaktiv brugergrænsefladekomponent, som udelukkende er ren udsmykning, som ikke er synlig for nogen, eller som udgør en del af et billede, der indeholder andet væsentligt visuelt indhold, er ikke underlagt et kontrastkrav.\nLogotyper: Tekst, der udgør en del af et logo eller varemærkenavn, er ikke underlagt et kontrastkrav.","AA"]
["Opfattelig","Adskillelig","1.4.4","Ændring af tekststørrelse","Tekst kan, med undtagelse af undertekster og billeder af tekst, forstørres op til 200 % uden brug af kompenserende teknologi uden tab af indhold eller funktionalitet.","AA"]
["Opfattelig","Adskillelig","1.4.5","Billeder af tekst","Hvis de anvendte teknologier kan håndtere den visuelle præsentation, anvendes tekst frem for billeder af tekst til formidling af information, undtagen i følgende tilfælde:\n\nKan tilpasses: Billedet af tekst kan tilpasses visuelt til at imødekomme brugerens krav.\nNødvendig: En særlig præsentation af tekst er nødvendig for den information, der formidles.","AA"]
["Opfattelig","Adskillelig","1.4.6","Kontrast (udvidet)","Den visuelle præsentation af tekst eller billeder af tekst skal have et kontrastforhold på mindst 7:1, undtagen i følgende tilfælde:\n\nStor skrift: Tekst og billeder af tekst med stor skrift skal have et kontrastforhold på mindst 4,5:1.\nIkke betydningsbærende: Tekst eller billeder af tekst, der udgør en del af en inaktiv brugergrænsefladekomponent, som udelukkende er ren udsmykning, som ikke er synlig for nogen, eller som udgør en del af et billede, der indeholder andet væsentligt visuelt indhold, er ikke underlagt et kontrastkrav.\nLogotyper: Tekst, der udgør en del af et logo eller varemærkenavn, er ikke underlagt et kontrastkrav.","AAA"]
["Opfattelig","Adskillelig","1.4.7","Lav eller ingen baggrundslyd","For forudindspillet rent lydindhold der (1) primært indeholder tale i forgrunden, (2) ikke er en lydbaseret CAPTCHA eller et lydbaseret logo, og som (3) ikke er vokalisering med et primært musikalsk udtryksformål såsom sang eller rap, gælder mindst et af følgende punkter:\nIngen baggrund: Lydbilledet indeholder ikke baggrundslyd\nSlå fra: Baggrundslyden kan slås fra.\n20 dB:Baggrundslydens lydstyrke er mindst 20 dB lavere end forgrundens taleindhold, undtaget er lejlighedsvise lyde, der kun varer 1 eller 2 sekunder.","AAA"]
["Opfattelig","Adskillelig","1.4.8","Visuel præsentation","Der findes en mekanisme til den visuelle præsentation af tekstblokke med det formål at opnå følgende:\n- Forgrunds- og baggrundsfarver kan vælges af brugeren.\n- Bredden er ikke mere end 80 tegn eller glyffer (40 i tilfælde af kinesisk, japansk eller koreansk).\n- Teksten er ikke justeret (justeret efter både venstre og højre margin).\n- Linjeafstanden (skydningen) er mindst 1,5 inden for afsnit, og afstanden mellem afsnit er mindst 1,5 gange større end linjeafstanden.\n- Tekst kan tilpasses i størrelse uden brug af kompenserende teknologi op til 200 % på en måde, der ikke kræver, at brugeren scroller horisontalt for at læse en linje tekst i et vindue i fuld skærm.","AAA"]
["Opfattelig","Adskillelig","1.4.9","Billeder af tekst (ingen undtagelser)","Billeder af tekst anvendes udelukkende som udsmykning, eller hvor en speciel præsentation af tekst er nødvendig for, at informationen formidles.","AAA"]
["Opfattelig","Adskillelig","1.4.1"," Ombrydningsvisning","Indhold kan præsenteres uden tab af information eller funktionalitet, og uden at det er nødvendigt at scrolle i to dimensioner, for:\n\n- Lodret scrollende indhold med en bredde svarede til 320 CSS-pixels,\n- Vandret scrollende indhold med en højde svarende til 256 CSS-pixels.\nUndtaget herfra er dele af indholdet, som kræver todimensionelt layout for at kunne anvendes eller give mening.","AA"]
["Opfattelig","Adskillelig","1.4.1"," Kontrast for ikke-tekstbaseret indhold","Den visuelle præsentation af de følgende har et kontrastforhold på mindst 3:1 mod tilstødende farve(r):\nBrugergrænsefladekomponenter: Visuel information, som er nødvendig for at kunne identificere brugergrænsefladekomponenter og tilstande, undtagen for inaktive komponenter eller hvor udseendet af komponenten er bestemt af brugeragenten og ikke ændret af forfatteren.\nGrafiske objekter: Dele af grafik, som er påkrævet for at forstå indholdet, undtagen når en bestemt præsentation af grafikken er nødvendig for den information, der formidles.","AA"]
["Opfattelig","Adskillelig","1.4.1"," Tekstafstand","I indhold, der er implementeret med opmærkningssprog, som understøtter de følgende typografiske egenskaber (text style properties), må der ikke ske tab af indhold eller funktionalitet, når det følgende ændres, uden at andre typografiske egenskaber ændres:\n- Linjeafstand (skydning) til mindst 1,5 gange skriftstørrelsen,\n- Afstand mellem afsnit til mindst 2 gange skriftstørrelsen,\n- Bogstavafstand til mindst 0,12 gange skriftstørrelsen,\n- Afstand mellem ord til mindst 0,16 gange skriftstørrelsen.\nUndtagelse: Menneskelige sprog og skriftsprog, som ikke gør brug af en eller flere af disse typografiske egenskaber (text style properties) i skreven tekst, kan overholde kravene ved kun at bruge de egenskaber, som eksisterer for den kombination af sprog og skriftsprog.","AA"]
["Opfattelig","Adskillelig","1.4.1"," Indhold ved svævepegning (hover) eller fokus","Hvor det, at modtage og derefter fjerne svævemarkør (pointer hover) eller tastaturfokus, får ekstra indhold til at blive synligt og derefter skjult, gælder følgende:\nKan afvises: Der findes en mekanisme til at afvise det ekstra indhold uden at flytte svævemarkør (pointer hover) eller tastaturfokus, medmindre det ekstra indhold formidler en inputfejl eller ikke dækker for eller erstatter andet indhold.\nSvævepegning mulig (hoverable): Hvis en svævemarkør (hover) kan udløse det ekstra indhold, skal markøren kunne flyttes hen over det ekstra indhold, uden at det ekstra indhold forsvinder.\nBlivende: Det ekstra indhold forbliver synligt indtil svæve- eller fokusudløseren er fjernet, brugeren afviser indholdet, eller informationen ikke længere er gyldig.\nUndtagelse: Den visuelle præsentation af det ekstra indhold er kontrolleret af brugeragenten og er ikke blevet ændret af forfatteren.","AA"]
["Anvendelig","Tilgængelig via tastatur","2.1.1","Tastatur","Alle indholdets funktionaliteter kan betjenes via en tastaturgrænseflade uden at der er behov for specifik tidsindstilling af individuelle tastetryk, undtaget tilfælde, hvor den underliggende funktionalitet kræver input, der er afhængige af at kunne følge hele rækken af brugerens bevægelser og ikke blot slutpunkterne.","A"]
["Anvendelig","Tilgængelig via tastatur","2.1.2","Ingen tastaturfælde","Hvis tastaturfokus kan flyttes til en af sidens komponenter ved hjælp af en tastaturgrænseflade, kan fokus fjernes fra denne komponent udelukkende ved hjælp af en tastaturgrænseflade. Hvis det kræver mere end utilpassede pile- eller tab-taster eller andre standard lukkemetoder, skal brugeren rådgives om metoden til at fjerne fokus.","A"]
["Anvendelig","Tilgængelig via tastatur","2.1.3","Tastatur (ingen undtagelse)","Alle indholdets funktionaliteter skal kunne betjenes via en tastaturgrænseflade, uden at der kræves specifik tastehastighed.","AAA"]
["Anvendelig","Tilgængelig via tastatur","2.1.4","Genvejstaster","Hvis genvejstaster er implementeret i indhold kun ved hjælp af bogstaver (inklusiv store og små bogstaver), tegnsætning, tal eller symboltegn, gælder mindst et af følgende punkter:\nSlå fra: Der findes en mekanisme til at slå genvejen fra.\nÆndre: Der findes en mekanisme til at ændre genvejen, så den bruger en eller flere ikke-printbare tastaturtegn (for eksempel Ctrl, Alt og så videre).\nKun aktiv ved fokus: Tastaturgenvejen til en brugergrænsefladekomponent er kun aktiv, når komponenten er i fokus.","A"]
["Anvendelig","Passende tid","2.2.1","Justerbar Tidsbegrænsning (Timing)","For hver tidsbegrænsning, der er givet i indholdet, gælder mindst et af følgende punkter:\nSlå fra: Brugeren kan slukke for tidsbegrænsningen, før den udløber, eller\nTilpasse: Brugeren kan tilpasse tidsbegrænsningen, før den udløber, over en bred skala, der er mindst ti gange varigheden af standardindstillingen, eller\nUdvide: Brugeren advares, før tiden udløber, og får mindst 20 sekunder til at forlænge tidsbegrænsningen ved hjælp af en simpel handling (for eksempel ”tryk på mellemrumstasten”), og brugeren har mulighed for at forlænge tiden mindst ti gange, eller\nUndtagelse ved realtid: Tidsbegrænsningen er en nødvendig del af en begivenhed i realtid (for eksempel en auktion), og der findes ikke noget muligt alternativ til tidsbegrænsningen, eller\nNødvendig undtagelse: Tidsbegrænsningen er nødvendig, og en forlængelse vil gøre handlingen ugyldig, eller\n20 timers undtagelse: Tidsbegrænsningen varer længere end 20 timer.","A"]
["Anvendelig","Passende tid","2.2.2","Pause, stop, skjul","Ved bevægelse, blink, scroll eller automatisk opdatering af information gælder samtlige følgende punkter:\nBevægelse, blink, scrollning\nVed enhver form for bevægelse, blink eller scrollning af information, der (1) starter automatisk, (2) varer mere end fem sekunder og (3) præsenteres samtidigt med andet indhold, findes der en mekanisme, så brugeren kan stoppe, skjule eller sætte informationen på pause, medmindre bevægelsen, blinket eller scrollningen er en del af en handling, hvor dette er nødvendigt, og\nAutomatisk opdatering\nVed enhver form for automatisk opdatering af information, der (1) starter automatisk og (2) præsenteres samtidigt med andet indhold, findes der en mekanisme, som gør det muligt for brugeren at stoppe, skjule eller sætte opdateringen på pause, eller at kontrollere opdateringsfrekvensen, medmindre den automatiske opdatering er en del af en aktivitet, hvor dette er nødvendigt.","A"]
["Anvendelig","Passende tid","2.2.3","Ingen timing","Timing er ikke en nødvendig del af den begivenhed eller aktivitet, der præsenteres via indholdet, med undtagelse af ikke-interaktive, synkroniserede medier og begivenheder i realtid.","AAA"]
["Anvendelig","Passende tid","2.2.4","Afbrydelser","Afbrydelser skal kunne udskydes eller undertrykkes af brugeren. Undtaget herfra er afbrydelser, der skyldes en nødsituation.","AAA"]
["Anvendelig","Passende tid","2.2.5","Godkendelse på ny","Når en godkendt session udløber, kan brugeren fortsætte aktiviteten uden tab af data efter at have godkendt på ny.","AAA"]
["Anvendelig","Passende tid","2.2.6","Timeouts","Brugere advares om varigheden af enhver periode uden brugeraktivitet, der kan resultere i tab af data, medmindre data gemmes i mere end 20 timer, uden at brugeren foretager en handling.","AAA"]
["Anvendelig","Anfald og fysiske reaktioner","2.3.1","Grænseværdi på tre glimt eller derunder","Intet indhold på en webside glimter mere end tre gange på et sekund, eller glimtet ligger under grænseværdien for generelt glimt og rødt glimt.","A"]
["Anvendelig","Anfald og fysiske reaktioner","2.3.2","Tre glimt","Websider indeholder intet indhold, der glimter mere end tre gange i løbet af et hvilket som helst sekund.","AAA"]
["Anvendelig","Anfald og fysiske reaktioner","2.3.3","Animation ved interaktion","Bevægelsesanimation, som er udløst af interaktion, kan deaktiveres, medmindre animationen er nødvendig for funktionaliteten eller informationen, som formidles.","AAA"]
["Anvendelig","Navigerbar","2.4.1","Spring over blokke","Der findes en mekanisme til at springe over blokke af indhold, der gentages på flere websider.","A"]
["Anvendelig","Navigerbar","2.4.2","Sider har titler","Websider har titler, der beskriver emne eller formål.","A"]
["Anvendelig","Navigerbar","2.4.3","Fokusrækkefølge","Hvis der kan navigeres sekventielt på en webside, og hvis navigationssekvenserne påvirker mening eller betjening, skal fokuserbare komponenter opnå fokus i en rækkefølge, der bevarer meningen eller betjeningsmulighederne.","A"]
["Anvendelig","Navigerbar","2.4.4","Formål med links (i kontekst)","Formålet med ethvert link kan bestemmes ud fra link-teksten alene eller ud fra link-teksten sammen med den link-kontekst, der er programmeringsmæssigt bestemt, undtaget herfra er tilfælde, hvor linkets formål vil forekomme flertydigt for alle brugere.","A"]
["Anvendelig","Navigerbar","2.4.5","Flere måder","Der findes mere end en måde at lokalisere en webside på inden for en samling af websider. Undtaget er tilfælde, hvor websiden udgør et resultat af eller et trin i en proces.","AA"]
["Anvendelig","Navigerbar","2.4.6","Overskrifter og etiketter","Overskrifter og etiketter (labels) beskriver emne eller formål.","AA"]
["Anvendelig","Navigerbar"," 2.4."," Synligt fokus","Enhver tastaturbetjent brugergrænseflade har en betjeningstilstand, hvor tastaturfokusindikatoren er synlig.","AA"]
["Anvendelig","Navigerbar","2.4.8","Placering","Der findes information om brugerens placering inden for en samling af websider.","AAA"]
["Anvendelig","Navigerbar","2.4.9","Formål med link (link alene)","Der findes en mekanisme som gør det muligt at identificere formålet med et link ud fra link-teksten alene. Undtaget herfra er tilfælde, hvor formålet med linket vil forekomme flertydigt for alle brugere.","AAA"]
["Anvendelig","Navigerbar","2.4.1"," Sektionsoverskrifter","Sektionsoverskrifter anvendes til at organisere indhold.","AAA"]
["Anvendelig","Input Modalities","2.5.1","Pegebevægelser (Pointer Gestures)","Al funktionalitet, der betjenes ved hjælp af flerpunkts- eller stibaserede bevægelser (multipoint or path-based gestures), kan betjenes med et enkelt kontaktpunkt eller uden stibaseret bevægelse, medmindre en flerpunkts- eller stibaseret bevægelse er nødvendig.","A"]
["Anvendelig","Input Modalities","2.5.2","Pege-annullering","For funktionaliteter der kan betjenes ved hjælp af et enkelt pegepunkt, gælder mindst et af følgende punkter:\nIngen tryk-handling (Down-Event): Tryk-handlingen for pegebevægelsen bruges ikke til at udføre nogen del af funktionaliteten;\nAfbryd eller fortryd: Funktionaliteten udføres på slip-handlingen (Up-Event), og der findes en mekanisme til at afbryde funktionaliteten inden fuldførelse eller til at fortryde funktionaliteten efter udførelse;\nSlip-handling (Up-Event) medfører ophævning: Slip-handlingen (Up-Event) tilbagefører ethvert resultat af den foregående tryk-handling (Down-Event);\nNødvendig: Udførelse af funktionaliteten på tryk-handlingen (Down-Event) er nødvendig.","A"]
["Anvendelig","Input Modalities","2.5.3","Etiket i navn","For brugergrænsefladekomponenter med etiketter (labels), som indeholder tekst eller billeder af tekst, er navnet indeholdt i teksten, der præsenteres visuelt.","A"]
["Anvendelig","Input Modalities","2.5.4","Betjening via bevægelse","Funktionalitet, der kan betjenes ved hjælp af bevægelse af en enhed (device) eller via brugerens bevægelse, kan også betjenes ved hjælp af brugergrænsefladekomponenter, og reaktion på bevægelsen kan deaktiveres for at undgå utilsigtet aktivering, undtagen når:\nUnderstøttet brugergrænseflade: Bevægelsen bruges til at betjene funktionalitet gennem en tilgængelighedsunderstøttet brugergrænseflade.\nNødvendig: Bevægelsen er nødvendig for funktionaliteten, og at gøre dette vil ugyldiggøre aktiviteten.","A"]
["Anvendelig","Input Modalities","2.5.5","Målstørrelse","Størrelsen på målet for pegeinput er mindst 44 gange 44 CSS-pixels, undtagen når:\nTilsvarende: Målet er tilgængeligt via et tilsvarende link eller en kontrol på den samme side, der er mindst 44 gange 44 CSS-pixels;\nIndlejret (inline): Målet er i en sætning eller tekstblok;\nKontrol styret af brugeragenten: Størrelsen på målet er bestemt af brugeragenten og er ikke blevet ændret af forfatteren; \nNødvendig: En bestemt præsentation af målet er nødvendig for den information, som formidles.","AAA"]
["Anvendelig","Input Modalities","2.5.6","Samtidige inputmekanismer","Webindhold begrænser ikke brugen af de inputmetoder, der er tilgængelige på en platform, undtagen når begrænsningen er nødvendig, påkrævet af hensyn til sikkerheden i indholdet eller nødvendig for at respektere brugerens indstillinger.","AAA"]
["Forståelig","Læselig","3.1.1","Sproget på siden","Det menneskelige sprog, som er standard for hver webside, kan bestemmes programmeringsmæssigt.","A"]
["Forståelig","Læselig","3.1.2","Sprog, der anvendes til dele af indhold","Det menneskelige sprog, der anvendes i hver passage eller frase i indholdet, kan bestemmes programmeringsmæssigt. Undtaget herfra er egennavne, tekniske termer, ord med ubestemmelig sproglig baggrund samt ord eller vendinger, der er blevet en del af sprogbrugen i den tekst, de umiddelbart indgår i.","AA"]
["Forståelig","Læselig","3.1.3","Usædvanlige ord","Der findes en mekanisme, som gør det muligt at identificere specifikke definitioner af ord eller vendinger, der anvendes på en usædvanlig eller begrænset måde, herunder idiomer og jargon.","AAA"]
["Forståelig","Læselig","3.1.4","Forkortelser","Der findes en mekanisme, som gør det muligt at identificere den fulde form eller betydning af forkortelser.","AAA"]
["Forståelig","Læselig","3.1.5","Læseniveau","Når en tekst kræver et læseniveau, der er højere, end hvad der svarer til 7.-9./10. klasse efter at egennavne og titler er fjernet, skal der findes supplerende indhold eller en version, der ikke kræver et læseniveau, der er højere, end hvad der svarer til 7.-9./10. klasse.","AAA"]
["Forståelig","Læselig","3.1.6","Udtale","Der findes en mekanisme som gør det muligt at identificere den præcise udtale af ord i de tilfælde, hvor betydning eller kontekst forekommer flertydig, hvis man ikke kender udtalen.","AAA"]
["Forståelig","Forudsigelig","3.2.1","I fokus","Når en brugergrænsefladekomponent kommer i fokus, medfører dette ikke en ændring af kontekst.","A"]
["Forståelig","Forudsigelig","3.2.2","Ved input","Ændring af indstillingerne i en hvilken som helst brugergrænsefladekomponent medfører ikke automatisk ændring af kontekst, medmindre brugeren er blevet advaret herom, inden komponenten anvendes.","A"]
["Forståelig","Forudsigelig","3.2.3","Konsekvent navigation","Navigationsmekanismer, der gentages på flere websider inden for en samling af websider, skal optræde i samme relative rækkefølge, hver gang de gentages, medmindre brugeren selv foretager en ændring.","AA"]
["Forståelig","Forudsigelig","3.2.4","Konsekvent identifikation","Komponenter med samme funktionalitet inden for en række websider skal defineres konsekvent.","AA"]
["Forståelig","Forudsigelig","3.2.5","Ændring på anmodning","Kontekstændringer iværksættes alene på baggrund af en brugeranmodning, eller der findes en mekanisme som gør det muligt at slå sådanne ændringer fra.","AAA"]
["Forståelig","Inputhjælp","3.3.1","Identifikation af fejl","Hvis en inputfejl registreres automatisk, skal det fejlbehæftede element identificeres, og fejlen beskrives for brugeren ved hjælp af tekst.","A"]
["Forståelig","Inputhjælp","3.3.2","Etiketter eller instruktioner","Der findes etiketter eller instruktioner, når indhold kræver brugerinput.","A"]
["Forståelig","Inputhjælp","3.3.3","Fejlforslag","Hvis en inputfejl registreres automatisk, og der findes forslag til rettelse af fejlen, skal forslagene præsenteres for brugeren, medmindre dette ville undergrave sikkerheden eller indholdets formål.","AA"]
["Forståelig","Inputhjælp","3.3.4","Forhindring af fejl (juridisk, økonomisk, data)","For websider, som medfører juridiske forpligtelser eller økonomiske transaktioner for brugeren, som tilpasser eller sletter brugerkontrollerede data i datalagringssystemer, eller som afleverer svar på test udført af brugeren, skal mindst et af følgende punkter gælde:\nReversibel: Det sendte er reversibelt.\nTjek: Data, der indtastes af brugeren, tjekkes for inputfejl, og brugeren får mulighed for at rette fejlene.\nBekræftelse: Der findes en mekanisme som gør det muligt at gennemse, bekræfte eller rette information, før forsendelsen afsluttes.","AA"]
["Forståelig","Inputhjælp","3.3.5","Hjælp","Der findes kontekstafhængig hjælp.","AAA"]
["Forståelig","Inputhjælp","3.3.6","Forhindring af fejl (alle)","For websider, hvor det kræves at brugeren sender information, skal mindst et af følgende punkter være gældende:\nReversibel: Det sendte er reversibelt.\nTjek: Data, der indtastes af brugeren, tjekkes for inputfejl, og brugeren får mulighed for at rette fejlene.\nBekræftelse: Der findes en mekanisme, som gør det muligt at gennemse, bekræfte og rette information, før forsendelsen afsluttes.","AAA"]
["Robust","Kompatible","4.1.1","Parsing","I indhold, der er implementeret ved hjælp af opmærkningssprog, har elementerne komplette start- og sluttags, elementerne er indlejrede efter deres specifikationer, de indeholder ikke attribut-dubletter og ID’er er unikke; undtagen hvor specifikationerne tillader det.","A"]
["Robust","Kompatible","4.1.2","Navn, rolle, værdi","For alle brugergrænsefladekomponenter (herunder, men ikke alene formularelementer, links og komponenter, der er genereret via scripts) gælder det, at navn og rolle kan bestemmes programmeringsmæssigt. Tilstande, egenskaber og værdier, der kan indstilles af brugeren, kan indstilles programmeringsmæssigt, og besked om ændringer i disse elementer kan tilgås af brugeragenter, herunder kompenserende teknologier.","A"]
["Robust","Kompatible","4.1.3","Statusbeskeder","I indhold, der er implementeret ved hjælp af opmærkningssprog, kan statusbeskeder bestemmes programmeringsmæssigt ved hjælp af rolle eller egenskaber, sådan at de kan præsenteres for brugere af kompenserende teknologier uden at opnå fokus.","AA"]